{"text_format":"1","workbook":"xlsx","n_sheets":3,"sheets":["Summary","Mileage","Dropdown"],"not_rendered":{"charts":0,"images":1,"macros":1,"external_links":0,"defined_names":5,"comments":0,"pivot_tables":0},"unopened":[],"bounds":{"document_bytes":16777216,"sheet_cells":100000,"rows_first":2000,"rows_last":500,"rows_between":2000,"halvings":0,"cell_chars":16384,"cell_head_chars":4096},"cells_cut":0,"cells_raw":0,"read":"whole","date_system":"1900"}

{"sheet":"Summary","index":0,"n_rows":24,"n_cols":7,"rows_kept":24,"cut":false,"hidden":false,"merged":[[14,13,15,14],[3,3,3,5],[4,3,4,5],[7,3,7,5],[15,4,15,5],[5,3,5,5],[13,3,13,5],[14,3,14,5],[6,3,6,5],[16,4,16,5],[0,9,0,10],[3,1,3,2],[4,1,4,2],[5,1,5,2],[7,1,7,2],[0,3,0,5]]}
[null,null,null,"TRAV-207\nSummary for Mileage Reimbursement"]
[]
[]
[null,"Employee Name"]
[null,"Title"]
[null,"Official Station / Dept."]
[null,"Home Address"]
[null,"License Number"]
[]
[]
[]
[]
[]
[]
[null,null,null,"Travel Dates"]
[null,null,null,"Period beginning"]
[null,null,null,"Period ending"]
[]
[null,null,null,"Rate Per Mile",0.42]
[null,null,null,"Total Mileage",{"$f":"SUM(Mileage!L10:L302)","v":0}]
[null,null,null,"Total Reimbursement",{"$f":"SUM(Mileage!M10:M211)","v":0}]
[]
[null,"Driving Tag","Cost Center","REEport (AES Only)","Expense Item Classification","Mileage","Expense"]
[null,null,null,null," ",null,0]

{"sheet":"Mileage","index":1,"n_rows":302,"n_cols":13,"rows_kept":302,"cut":false,"hidden":false,"merged":[[2,1,2,2],[3,1,3,2],[4,1,4,2],[7,3,7,4],[6,3,6,6],[0,10,0,11],[0,3,0,8],[2,5,2,6],[3,5,3,6],[4,5,4,6],[2,3,2,4],[3,3,3,4],[4,3,4,4]]}
[null,null,null,"Mileage Reimbursement Log",null,null,null,null,null,null,"TRAV-207"]
[]
[null,"Employee Name",null,{"$f":"IF(Summary!$D4=\"\",\"\",Summary!$D4)","v":""},null,"Rate Per Mile",null,0.42]
[null,"Official Station/Dept",null,{"$f":"IF(Summary!$D6=\"\",\"\",Summary!$D6)","v":""},null,"Total Mileage",null,{"$f":"SUM(L10:L302)","v":0}]
[null,"Period Ending",null,{"$f":"IF(Summary!$E17=\"\",\"\",Summary!$E17)","v":""},null,"Total Reimbursement",null,{"$f":"SUM(M10:M302)","v":0}]
[]
[null,null,null,"Expense Label: \nTraining/Conference = Your attendance at a training or conference event as a participant.  \nIf you host or conduct training for others, please choose Official Business"]
[null,null,null,null,null,null,null,"."]
["Date","Driving Tag","Cost Center","REEport (AES Only)","Expense Label","Expense Item Classification","Purpose of Trip","From Location","Departure Time","To Location","Arrival Time","Mileage","Expense"]
[null,null,null,null,null,{"$f":"(IF(Mileage[[#This Row],[Expense Label]]=\"Official Business\",\"Mileage - Official Business\",IF(Mileage[[#This Row],[Expense Label]]=\"Training/Conference\",\"Mileage - Private Vehicle\",IF(ISBLANK(E10),\" \",))))","v":" "},null,null,null,null,null,null,{"$f":"SUM(Mileage[[#This Row],[Mileage]]*H3)","v":0}]
[null,null,null,null,null,{"$f":"(IF(Mileage[[#This Row],[Expense Label]]=\"Official Business\",\"Mileage - Official Business\",IF(Mileage[[#This Row],[Expense Label]]=\"Training/Conference\",\"Mileage - Private Vehicle\",IF(ISBLANK(E11),\" \",))))","v":" "},null,null,null,null,null,null,{"$f":"SUM(Mileage[[#This Row],[Mileage]]*H3)","v":0}]
[null,null,null,null,null,{"$f":"(IF(Mileage[[#This Row],[Expense Label]]=\"Official Business\",\"Mileage - Official Business\",IF(Mileage[[#This Row],[Expense Label]]=\"Training/Conference\",\"Mileage - Private Vehicle\",IF(ISBLANK(E12),\" \",))))","v":" "},null,null,null,null,null,null,{"$f":"SUM(Mileage[[#This Row],[Mileage]]*H3)","v":0}]
[null,null,null,null,null,{"$f":"(IF(Mileage[[#This Row],[Expense Label]]=\"Official Business\",\"Mileage - Official Business\",IF(Mileage[[#This Row],[Expense Label]]=\"Training/Conference\",\"Mileage - Private Vehicle\",IF(ISBLANK(E13),\" \",))))","v":" "},null,null,null,null,null,null,{"$f":"SUM(Mileage[[#This Row],[Mileage]]*H3)","v":0}]
[null,null,null,null,null,{"$f":"(IF(Mileage[[#This Row],[Expense Label]]=\"Official Business\",\"Mileage - Official Business\",IF(Mileage[[#This Row],[Expense Label]]=\"Training/Conference\",\"Mileage - Private Vehicle\",IF(ISBLANK(E14),\" \",))))","v":" "},null,null,null,null,null,null,{"$f":"SUM(Mileage[[#This Row],[Mileage]]*H3)","v":0}]
[null,null,null,null,null,{"$f":"(IF(Mileage[[#This Row],[Expense Label]]=\"Official Business\",\"Mileage - Official Business\",IF(Mileage[[#This Row],[Expense Label]]=\"Training/Conference\",\"Mileage - Private Vehicle\",IF(ISBLANK(E15),\" \",))))","v":" "},null,null,null,null,null,null,{"$f":"SUM(Mileage[[#This Row],[Mileage]]*H3)","v":0}]
[null,null,null,null,null,{"$f":"(IF(Mileage[[#This Row],[Expense Label]]=\"Official Business\",\"Mileage - Official Business\",IF(Mileage[[#This Row],[Expense Label]]=\"Training/Conference\",\"Mileage - Private Vehicle\",IF(ISBLANK(E16),\" \",))))","v":" "},null,null,null,null,null,null,{"$f":"SUM(Mileage[[#This Row],[Mileage]]*H3)","v":0}]
[null,null,null,null,null,{"$f":"(IF(Mileage[[#This Row],[Expense Label]]=\"Official Business\",\"Mileage - Official Business\",IF(Mileage[[#This Row],[Expense Label]]=\"Training/Conference\",\"Mileage - Private Vehicle\",IF(ISBLANK(E17),\" \",))))","v":" "},null,null,null,null,null,null,{"$f":"SUM(Mileage[[#This Row],[Mileage]]*H3)","v":0}]
[null,null,null,null,null,{"$f":"(IF(Mileage[[#This Row],[Expense Label]]=\"Official Business\",\"Mileage - Official Business\",IF(Mileage[[#This Row],[Expense Label]]=\"Training/Conference\",\"Mileage - Private Vehicle\",IF(ISBLANK(E18),\" \",))))","v":" "},null,null,null,null,null,null,{"$f":"SUM(Mileage[[#This Row],[Mileage]]*H3)","v":0}]
[null,null,null,null,null,{"$f":"(IF(Mileage[[#This Row],[Expense Label]]=\"Official Business\",\"Mileage - Official Business\",IF(Mileage[[#This Row],[Expense Label]]=\"Training/Conference\",\"Mileage - Private Vehicle\",IF(ISBLANK(E19),\" \",))))","v":" "},null,null,null,null,null,null,{"$f":"SUM(Mileage[[#This Row],[Mileage]]*H3)","v":0}]
[null,null,null,null,null,{"$f":"(IF(Mileage[[#This Row],[Expense Label]]=\"Official Business\",\"Mileage - Official Business\",IF(Mileage[[#This Row],[Expense Label]]=\"Training/Conference\",\"Mileage - Private Vehicle\",IF(ISBLANK(E20),\" \",))))","v":" "},null,null,null,null,null,null,{"$f":"SUM(Mileage[[#This Row],[Mileage]]*H3)","v":0}]
[null,null,null,null,null,{"$f":"(IF(Mileage[[#This Row],[Expense Label]]=\"Official Business\",\"Mileage - Official Business\",IF(Mileage[[#This Row],[Expense Label]]=\"Training/Conference\",\"Mileage - Private Vehicle\",IF(ISBLANK(E21),\" \",))))","v":" "},null,null,null,null,null,null,{"$f":"SUM(Mileage[[#This Row],[Mileage]]*H3)","v":0}]
[null,null,null,null,null,{"$f":"(IF(Mileage[[#This Row],[Expense Label]]=\"Official Business\",\"Mileage - Official Business\",IF(Mileage[[#This Row],[Expense Label]]=\"Training/Conference\",\"Mileage - Private Vehicle\",IF(ISBLANK(E22),\" \",))))","v":" "},null,null,null,null,null,null,{"$f":"SUM(Mileage[[#This Row],[Mileage]]*H3)","v":0}]
[null,null,null,null,null,{"$f":"(IF(Mileage[[#This Row],[Expense Label]]=\"Official Business\",\"Mileage - Official Business\",IF(Mileage[[#This Row],[Expense Label]]=\"Training/Conference\",\"Mileage - Private Vehicle\",IF(ISBLANK(E23),\" \",))))","v":" "},null,null,null,null,null,null,{"$f":"SUM(Mileage[[#This Row],[Mileage]]*H3)","v":0}]
[null,null,null,null,null,{"$f":"(IF(Mileage[[#This Row],[Expense Label]]=\"Official Business\",\"Mileage - Official Business\",IF(Mileage[[#This Row],[Expense Label]]=\"Training/Conference\",\"Mileage - Private Vehicle\",IF(ISBLANK(E24),\" \",))))","v":" "},null,null,null,null,null,null,{"$f":"SUM(Mileage[[#This Row],[Mileage]]*H3)","v":0}]
[null,null,null,null,null,{"$f":"(IF(Mileage[[#This Row],[Expense Label]]=\"Official Business\",\"Mileage - Official Business\",IF(Mileage[[#This Row],[Expense Label]]=\"Training/Conference\",\"Mileage - Private Vehicle\",IF(ISBLANK(E25),\" \",))))","v":" "},null,null,null,null,null,null,{"$f":"SUM(Mileage[[#This Row],[Mileage]]*H3)","v":0}]
[null,null,null,null,null,{"$f":"(IF(Mileage[[#This Row],[Expense Label]]=\"Official Business\",\"Mileage - Official Business\",IF(Mileage[[#This Row],[Expense Label]]=\"Training/Conference\",\"Mileage - Private Vehicle\",IF(ISBLANK(E26),\" \",))))","v":" "},null,null,null,null,null,null,{"$f":"SUM(Mileage[[#This Row],[Mileage]]*H3)","v":0}]
[null,null,null,null,null,{"$f":"(IF(Mileage[[#This Row],[Expense Label]]=\"Official Business\",\"Mileage - Official Business\",IF(Mileage[[#This Row],[Expense Label]]=\"Training/Conference\",\"Mileage - Private Vehicle\",IF(ISBLANK(E27),\" \",))))","v":" "},null,null,null,null,null,null,{"$f":"SUM(Mileage[[#This Row],[Mileage]]*H3)","v":0}]
[null,null,null,null,null,{"$f":"(IF(Mileage[[#This Row],[Expense Label]]=\"Official Business\",\"Mileage - Official Business\",IF(Mileage[[#This Row],[Expense Label]]=\"Training/Conference\",\"Mileage - Private Vehicle\",IF(ISBLANK(E28),\" \",))))","v":" "},null,null,null,null,null,null,{"$f":"SUM(Mileage[[#This Row],[Mileage]]*H3)","v":0}]
[null,null,null,null,null,{"$f":"(IF(Mileage[[#This Row],[Expense Label]]=\"Official Business\",\"Mileage - Official Business\",IF(Mileage[[#This Row],[Expense Label]]=\"Training/Conference\",\"Mileage - Private Vehicle\",IF(ISBLANK(E29),\" \",))))","v":" "},null,null,null,null,null,null,{"$f":"SUM(Mileage[[#This Row],[Mileage]]*H3)","v":0}]
[null,null,null,null,null,{"$f":"(IF(Mileage[[#This Row],[Expense Label]]=\"Official Business\",\"Mileage - Official Business\",IF(Mileage[[#This Row],[Expense Label]]=\"Training/Conference\",\"Mileage - Private Vehicle\",IF(ISBLANK(E30),\" \",))))","v":" "},null,null,null,null,null,null,{"$f":"SUM(Mileage[[#This Row],[Mileage]]*H3)","v":0}]
[null,null,null,null,null,{"$f":"(IF(Mileage[[#This Row],[Expense Label]]=\"Official Business\",\"Mileage - Official Business\",IF(Mileage[[#This Row],[Expense Label]]=\"Training/Conference\",\"Mileage - Private Vehicle\",IF(ISBLANK(E31),\" \",))))","v":" "},null,null,null,null,null,null,{"$f":"SUM(Mileage[[#This Row],[Mileage]]*H3)","v":0}]
[null,null,null,null,null,{"$f":"(IF(Mileage[[#This Row],[Expense Label]]=\"Official Business\",\"Mileage - Official Business\",IF(Mileage[[#This Row],[Expense Label]]=\"Training/Conference\",\"Mileage - Private Vehicle\",IF(ISBLANK(E32),\" \",))))","v":" "},null,null,null,null,null,null,{"$f":"SUM(Mileage[[#This Row],[Mileage]]*H3)","v":0}]
[null,null,null,null,null,{"$f":"(IF(Mileage[[#This Row],[Expense Label]]=\"Official Business\",\"Mileage - Official Business\",IF(Mileage[[#This Row],[Expense Label]]=\"Training/Conference\",\"Mileage - Private Vehicle\",IF(ISBLANK(E33),\" \",))))","v":" "},null,null,null,null,null,null,{"$f":"SUM(Mileage[[#This Row],[Mileage]]*H3)","v":0}]
[null,null,null,null,null,{"$f":"(IF(Mileage[[#This Row],[Expense Label]]=\"Official Business\",\"Mileage - Official Business\",IF(Mileage[[#This Row],[Expense Label]]=\"Training/Conference\",\"Mileage - Private Vehicle\",IF(ISBLANK(E34),\" \",))))","v":" "},null,null,null,null,null,null,{"$f":"SUM(Mileage[[#This Row],[Mileage]]*H3)","v":0}]
[null,null,null,null,null,{"$f":"(IF(Mileage[[#This Row],[Expense Label]]=\"Official Business\",\"Mileage - Official Business\",IF(Mileage[[#This Row],[Expense Label]]=\"Training/Conference\",\"Mileage - Private Vehicle\",IF(ISBLANK(E35),\" \",))))","v":" "},null,null,null,null,null,null,{"$f":"SUM(Mileage[[#This Row],[Mileage]]*H3)","v":0}]
[null,null,null,null,null,{"$f":"(IF(Mileage[[#This Row],[Expense Label]]=\"Official Business\",\"Mileage - Official Business\",IF(Mileage[[#This Row],[Expense Label]]=\"Training/Conference\",\"Mileage - Private Vehicle\",IF(ISBLANK(E36),\" \",))))","v":" "},null,null,null,null,null,null,{"$f":"SUM(Mileage[[#This Row],[Mileage]]*H3)","v":0}]
[null,null,null,null,null,{"$f":"(IF(Mileage[[#This Row],[Expense Label]]=\"Official Business\",\"Mileage - Official Business\",IF(Mileage[[#This Row],[Expense Label]]=\"Training/Conference\",\"Mileage - Private Vehicle\",IF(ISBLANK(E37),\" \",))))","v":" "},null,null,null,null,null,null,{"$f":"SUM(Mileage[[#This Row],[Mileage]]*H3)","v":0}]
[null,null,null,null,null,{"$f":"(IF(Mileage[[#This Row],[Expense Label]]=\"Official Business\",\"Mileage - Official Business\",IF(Mileage[[#This Row],[Expense Label]]=\"Training/Conference\",\"Mileage - Private Vehicle\",IF(ISBLANK(E38),\" \",))))","v":" "},null,null,null,null,null,null,{"$f":"SUM(Mileage[[#This Row],[Mileage]]*H3)","v":0}]
[null,null,null,null,null,{"$f":"(IF(Mileage[[#This Row],[Expense Label]]=\"Official Business\",\"Mileage - Official Business\",IF(Mileage[[#This Row],[Expense Label]]=\"Training/Conference\",\"Mileage - Private Vehicle\",IF(ISBLANK(E39),\" \",))))","v":" "},null,null,null,null,null,null,{"$f":"SUM(Mileage[[#This Row],[Mileage]]*H3)","v":0}]
[null,null,null,null,null,{"$f":"(IF(Mileage[[#This Row],[Expense Label]]=\"Official Business\",\"Mileage - Official Business\",IF(Mileage[[#This Row],[Expense Label]]=\"Training/Conference\",\"Mileage - Private Vehicle\",IF(ISBLANK(E40),\" \",))))","v":" "},null,null,null,null,null,null,{"$f":"SUM(Mileage[[#This Row],[Mileage]]*H3)","v":0}]
[null,null,null,null,null,{"$f":"(IF(Mileage[[#This Row],[Expense Label]]=\"Official Business\",\"Mileage - Official Business\",IF(Mileage[[#This Row],[Expense Label]]=\"Training/Conference\",\"Mileage - Private Vehicle\",IF(ISBLANK(E41),\" \",))))","v":" "},null,null,null,null,null,null,{"$f":"SUM(Mileage[[#This Row],[Mileage]]*H3)","v":0}]
[null,null,null,null,null,{"$f":"(IF(Mileage[[#This Row],[Expense Label]]=\"Official Business\",\"Mileage - Official Business\",IF(Mileage[[#This Row],[Expense Label]]=\"Training/Conference\",\"Mileage - Private Vehicle\",IF(ISBLANK(E42),\" \",))))","v":" "},null,null,null,null,null,null,{"$f":"SUM(Mileage[[#This Row],[Mileage]]*H3)","v":0}]
[null,null,null,null,null,{"$f":"(IF(Mileage[[#This Row],[Expense Label]]=\"Official Business\",\"Mileage - Official Business\",IF(Mileage[[#This Row],[Expense Label]]=\"Training/Conference\",\"Mileage - Private Vehicle\",IF(ISBLANK(E43),\" \",))))","v":" "},null,null,null,null,null,null,{"$f":"SUM(Mileage[[#This Row],[Mileage]]*H3)","v":0}]
[null,null,null,null,null,{"$f":"(IF(Mileage[[#This Row],[Expense Label]]=\"Official Business\",\"Mileage - Official Business\",IF(Mileage[[#This Row],[Expense Label]]=\"Training/Conference\",\"Mileage - Private Vehicle\",IF(ISBLANK(E44),\" \",))))","v":" "},null,null,null,null,null,null,{"$f":"SUM(Mileage[[#This Row],[Mileage]]*H3)","v":0}]
[null,null,null,null,null,{"$f":"(IF(Mileage[[#This Row],[Expense Label]]=\"Official Business\",\"Mileage - Official Business\",IF(Mileage[[#This Row],[Expense Label]]=\"Training/Conference\",\"Mileage - Private Vehicle\",IF(ISBLANK(E45),\" \",))))","v":" "},null,null,null,null,null,null,{"$f":"SUM(Mileage[[#This Row],[Mileage]]*H3)","v":0}]
[null,null,null,null,null,{"$f":"(IF(Mileage[[#This Row],[Expense Label]]=\"Official Business\",\"Mileage - Official Business\",IF(Mileage[[#This Row],[Expense Label]]=\"Training/Conference\",\"Mileage - Private Vehicle\",IF(ISBLANK(E46),\" \",))))","v":" "},null,null,null,null,null,null,{"$f":"SUM(Mileage[[#This Row],[Mileage]]*H3)","v":0}]
[null,null,null,null,null,{"$f":"(IF(Mileage[[#This Row],[Expense Label]]=\"Official Business\",\"Mileage - Official Business\",IF(Mileage[[#This Row],[Expense Label]]=\"Training/Conference\",\"Mileage - Private Vehicle\",IF(ISBLANK(E47),\" \",))))","v":" "},null,null,null,null,null,null,{"$f":"SUM(Mileage[[#This Row],[Mileage]]*H3)","v":0}]
[null,null,null,null,null,{"$f":"(IF(Mileage[[#This Row],[Expense Label]]=\"Official Business\",\"Mileage - Official Business\",IF(Mileage[[#This Row],[Expense Label]]=\"Training/Conference\",\"Mileage - Private Vehicle\",IF(ISBLANK(E48),\" \",))))","v":" "},null,null,null,null,null,null,{"$f":"SUM(Mileage[[#This Row],[Mileage]]*H3)","v":0}]
[null,null,null,null,null,{"$f":"(IF(Mileage[[#This Row],[Expense Label]]=\"Official Business\",\"Mileage - Official Business\",IF(Mileage[[#This Row],[Expense Label]]=\"Training/Conference\",\"Mileage - Private Vehicle\",IF(ISBLANK(E49),\" \",))))","v":" "},null,null,null,null,null,null,{"$f":"SUM(Mileage[[#This Row],[Mileage]]*H3)","v":0}]
[null,null,null,null,null,{"$f":"(IF(Mileage[[#This Row],[Expense Label]]=\"Official Business\",\"Mileage - Official Business\",IF(Mileage[[#This Row],[Expense Label]]=\"Training/Conference\",\"Mileage - Private Vehicle\",IF(ISBLANK(E50),\" \",))))","v":" "},null,null,null,null,null,null,{"$f":"SUM(Mileage[[#This Row],[Mileage]]*H3)","v":0}]
[null,null,null,null,null,{"$f":"(IF(Mileage[[#This Row],[Expense Label]]=\"Official Business\",\"Mileage - Official Business\",IF(Mileage[[#This Row],[Expense Label]]=\"Training/Conference\",\"Mileage - Private Vehicle\",IF(ISBLANK(E51),\" \",))))","v":" "},null,null,null,null,null,null,{"$f":"SUM(Mileage[[#This Row],[Mileage]]*H3)","v":0}]
[null,null,null,null,null,{"$f":"(IF(Mileage[[#This Row],[Expense Label]]=\"Official Business\",\"Mileage - Official Business\",IF(Mileage[[#This Row],[Expense Label]]=\"Training/Conference\",\"Mileage - Private Vehicle\",IF(ISBLANK(E52),\" \",))))","v":" "},null,null,null,null,null,null,{"$f":"SUM(Mileage[[#This Row],[Mileage]]*H3)","v":0}]
[null,null,null,null,null,{"$f":"(IF(Mileage[[#This Row],[Expense Label]]=\"Official Business\",\"Mileage - Official Business\",IF(Mileage[[#This Row],[Expense Label]]=\"Training/Conference\",\"Mileage - Private Vehicle\",IF(ISBLANK(E53),\" \",))))","v":" "},null,null,null,null,null,null,{"$f":"SUM(Mileage[[#This Row],[Mileage]]*H3)","v":0}]
[null,null,null,null,null,{"$f":"(IF(Mileage[[#This Row],[Expense Label]]=\"Official Business\",\"Mileage - Official Business\",IF(Mileage[[#This Row],[Expense Label]]=\"Training/Conference\",\"Mileage - Private Vehicle\",IF(ISBLANK(E54),\" \",))))","v":" "},null,null,null,null,null,null,{"$f":"SUM(Mileage[[#This Row],[Mileage]]*H3)","v":0}]
[null,null,null,null,null,{"$f":"(IF(Mileage[[#This Row],[Expense Label]]=\"Official Business\",\"Mileage - Official Business\",IF(Mileage[[#This Row],[Expense Label]]=\"Training/Conference\",\"Mileage - Private Vehicle\",IF(ISBLANK(E55),\" \",))))","v":" "},null,null,null,null,null,null,{"$f":"SUM(Mileage[[#This Row],[Mileage]]*H3)","v":0}]
[null,null,null,null,null,{"$f":"(IF(Mileage[[#This Row],[Expense Label]]=\"Official Business\",\"Mileage - Official Business\",IF(Mileage[[#This Row],[Expense Label]]=\"Training/Conference\",\"Mileage - Private Vehicle\",IF(ISBLANK(E56),\" \",))))","v":" "},null,null,null,null,null,null,{"$f":"SUM(Mileage[[#This Row],[Mileage]]*H3)","v":0}]
[null,null,null,null,null,{"$f":"(IF(Mileage[[#This Row],[Expense Label]]=\"Official Business\",\"Mileage - Official Business\",IF(Mileage[[#This Row],[Expense Label]]=\"Training/Conference\",\"Mileage - Private Vehicle\",IF(ISBLANK(E57),\" \",))))","v":" "},null,null,null,null,null,null,{"$f":"SUM(Mileage[[#This Row],[Mileage]]*H3)","v":0}]
[null,null,null,null,null,{"$f":"(IF(Mileage[[#This Row],[Expense Label]]=\"Official Business\",\"Mileage - Official Business\",IF(Mileage[[#This Row],[Expense Label]]=\"Training/Conference\",\"Mileage - Private Vehicle\",IF(ISBLANK(E58),\" \",))))","v":" "},null,null,null,null,null,null,{"$f":"SUM(Mileage[[#This Row],[Mileage]]*H3)","v":0}]
[null,null,null,null,null,{"$f":"(IF(Mileage[[#This Row],[Expense Label]]=\"Official Business\",\"Mileage - Official Business\",IF(Mileage[[#This Row],[Expense Label]]=\"Training/Conference\",\"Mileage - Private Vehicle\",IF(ISBLANK(E59),\" \",))))","v":" "},null,null,null,null,null,null,{"$f":"SUM(Mileage[[#This Row],[Mileage]]*H3)","v":0}]
[null,null,null,null,null,{"$f":"(IF(Mileage[[#This Row],[Expense Label]]=\"Official Business\",\"Mileage - Official Business\",IF(Mileage[[#This Row],[Expense Label]]=\"Training/Conference\",\"Mileage - Private Vehicle\",IF(ISBLANK(E60),\" \",))))","v":" "},null,null,null,null,null,null,{"$f":"SUM(Mileage[[#This Row],[Mileage]]*H3)","v":0}]
[null,null,null,null,null,{"$f":"(IF(Mileage[[#This Row],[Expense Label]]=\"Official Business\",\"Mileage - Official Business\",IF(Mileage[[#This Row],[Expense Label]]=\"Training/Conference\",\"Mileage - Private Vehicle\",IF(ISBLANK(E61),\" \",))))","v":" "},null,null,null,null,null,null,{"$f":"SUM(Mileage[[#This Row],[Mileage]]*H3)","v":0}]
[null,null,null,null,null,{"$f":"(IF(Mileage[[#This Row],[Expense Label]]=\"Official Business\",\"Mileage - Official Business\",IF(Mileage[[#This Row],[Expense Label]]=\"Training/Conference\",\"Mileage - Private Vehicle\",IF(ISBLANK(E62),\" \",))))","v":" "},null,null,null,null,null,null,{"$f":"SUM(Mileage[[#This Row],[Mileage]]*H3)","v":0}]
[null,null,null,null,null,{"$f":"(IF(Mileage[[#This Row],[Expense Label]]=\"Official Business\",\"Mileage - Official Business\",IF(Mileage[[#This Row],[Expense Label]]=\"Training/Conference\",\"Mileage - Private Vehicle\",IF(ISBLANK(E63),\" \",))))","v":" "},null,null,null,null,null,null,{"$f":"SUM(Mileage[[#This Row],[Mileage]]*H3)","v":0}]
[null,null,null,null,null,{"$f":"(IF(Mileage[[#This Row],[Expense Label]]=\"Official Business\",\"Mileage - Official Business\",IF(Mileage[[#This Row],[Expense Label]]=\"Training/Conference\",\"Mileage - Private Vehicle\",IF(ISBLANK(E64),\" \",))))","v":" "},null,null,null,null,null,null,{"$f":"SUM(Mileage[[#This Row],[Mileage]]*H3)","v":0}]
[null,null,null,null,null,{"$f":"(IF(Mileage[[#This Row],[Expense Label]]=\"Official Business\",\"Mileage - Official Business\",IF(Mileage[[#This Row],[Expense Label]]=\"Training/Conference\",\"Mileage - Private Vehicle\",IF(ISBLANK(E65),\" \",))))","v":" "},null,null,null,null,null,null,{"$f":"SUM(Mileage[[#This Row],[Mileage]]*H3)","v":0}]
[null,null,null,null,null,{"$f":"(IF(Mileage[[#This Row],[Expense Label]]=\"Official Business\",\"Mileage - Official Business\",IF(Mileage[[#This Row],[Expense Label]]=\"Training/Conference\",\"Mileage - Private Vehicle\",IF(ISBLANK(E66),\" \",))))","v":" "},null,null,null,null,null,null,{"$f":"SUM(Mileage[[#This Row],[Mileage]]*H3)","v":0}]
[null,null,null,null,null,{"$f":"(IF(Mileage[[#This Row],[Expense Label]]=\"Official Business\",\"Mileage - Official Business\",IF(Mileage[[#This Row],[Expense Label]]=\"Training/Conference\",\"Mileage - Private Vehicle\",IF(ISBLANK(E67),\" \",))))","v":" "},null,null,null,null,null,null,{"$f":"SUM(Mileage[[#This Row],[Mileage]]*H3)","v":0}]
[null,null,null,null,null,{"$f":"(IF(Mileage[[#This Row],[Expense Label]]=\"Official Business\",\"Mileage - Official Business\",IF(Mileage[[#This Row],[Expense Label]]=\"Training/Conference\",\"Mileage - Private Vehicle\",IF(ISBLANK(E68),\" \",))))","v":" "},null,null,null,null,null,null,{"$f":"SUM(Mileage[[#This Row],[Mileage]]*H3)","v":0}]
[null,null,null,null,null,{"$f":"(IF(Mileage[[#This Row],[Expense Label]]=\"Official Business\",\"Mileage - Official Business\",IF(Mileage[[#This Row],[Expense Label]]=\"Training/Conference\",\"Mileage - Private Vehicle\",IF(ISBLANK(E69),\" \",))))","v":" "},null,null,null,null,null,null,{"$f":"SUM(Mileage[[#This Row],[Mileage]]*H3)","v":0}]
[null,null,null,null,null,{"$f":"(IF(Mileage[[#This Row],[Expense Label]]=\"Official Business\",\"Mileage - Official Business\",IF(Mileage[[#This Row],[Expense Label]]=\"Training/Conference\",\"Mileage - Private Vehicle\",IF(ISBLANK(E70),\" \",))))","v":" "},null,null,null,null,null,null,{"$f":"SUM(Mileage[[#This Row],[Mileage]]*H3)","v":0}]
[null,null,null,null,null,{"$f":"(IF(Mileage[[#This Row],[Expense Label]]=\"Official Business\",\"Mileage - Official Business\",IF(Mileage[[#This Row],[Expense Label]]=\"Training/Conference\",\"Mileage - Private Vehicle\",IF(ISBLANK(E71),\" \",))))","v":" "},null,null,null,null,null,null,{"$f":"SUM(Mileage[[#This Row],[Mileage]]*H3)","v":0}]
[null,null,null,null,null,{"$f":"(IF(Mileage[[#This Row],[Expense Label]]=\"Official Business\",\"Mileage - Official Business\",IF(Mileage[[#This Row],[Expense Label]]=\"Training/Conference\",\"Mileage - Private Vehicle\",IF(ISBLANK(E72),\" \",))))","v":" "},null,null,null,null,null,null,{"$f":"SUM(Mileage[[#This Row],[Mileage]]*H3)","v":0}]
[null,null,null,null,null,{"$f":"(IF(Mileage[[#This Row],[Expense Label]]=\"Official Business\",\"Mileage - Official Business\",IF(Mileage[[#This Row],[Expense Label]]=\"Training/Conference\",\"Mileage - Private Vehicle\",IF(ISBLANK(E73),\" \",))))","v":" "},null,null,null,null,null,null,{"$f":"SUM(Mileage[[#This Row],[Mileage]]*H3)","v":0}]
[null,null,null,null,null,{"$f":"(IF(Mileage[[#This Row],[Expense Label]]=\"Official Business\",\"Mileage - Official Business\",IF(Mileage[[#This Row],[Expense Label]]=\"Training/Conference\",\"Mileage - Private Vehicle\",IF(ISBLANK(E74),\" \",))))","v":" "},null,null,null,null,null,null,{"$f":"SUM(Mileage[[#This Row],[Mileage]]*H3)","v":0}]
[null,null,null,null,null,{"$f":"(IF(Mileage[[#This Row],[Expense Label]]=\"Official Business\",\"Mileage - Official Business\",IF(Mileage[[#This Row],[Expense Label]]=\"Training/Conference\",\"Mileage - Private Vehicle\",IF(ISBLANK(E75),\" \",))))","v":" "},null,null,null,null,null,null,{"$f":"SUM(Mileage[[#This Row],[Mileage]]*H3)","v":0}]
[null,null,null,null,null,{"$f":"(IF(Mileage[[#This Row],[Expense Label]]=\"Official Business\",\"Mileage - Official Business\",IF(Mileage[[#This Row],[Expense Label]]=\"Training/Conference\",\"Mileage - Private Vehicle\",IF(ISBLANK(E76),\" \",))))","v":" "},null,null,null,null,null,null,{"$f":"SUM(Mileage[[#This Row],[Mileage]]*H3)","v":0}]
[null,null,null,null,null,{"$f":"(IF(Mileage[[#This Row],[Expense Label]]=\"Official Business\",\"Mileage - Official Business\",IF(Mileage[[#This Row],[Expense Label]]=\"Training/Conference\",\"Mileage - Private Vehicle\",IF(ISBLANK(E77),\" \",))))","v":" "},null,null,null,null,null,null,{"$f":"SUM(Mileage[[#This Row],[Mileage]]*H3)","v":0}]
[null,null,null,null,null,{"$f":"(IF(Mileage[[#This Row],[Expense Label]]=\"Official Business\",\"Mileage - Official Business\",IF(Mileage[[#This Row],[Expense Label]]=\"Training/Conference\",\"Mileage - Private Vehicle\",IF(ISBLANK(E78),\" \",))))","v":" "},null,null,null,null,null,null,{"$f":"SUM(Mileage[[#This Row],[Mileage]]*H3)","v":0}]
[null,null,null,null,null,{"$f":"(IF(Mileage[[#This Row],[Expense Label]]=\"Official Business\",\"Mileage - Official Business\",IF(Mileage[[#This Row],[Expense Label]]=\"Training/Conference\",\"Mileage - Private Vehicle\",IF(ISBLANK(E79),\" \",))))","v":" "},null,null,null,null,null,null,{"$f":"SUM(Mileage[[#This Row],[Mileage]]*H3)","v":0}]
[null,null,null,null,null,{"$f":"(IF(Mileage[[#This Row],[Expense Label]]=\"Official Business\",\"Mileage - Official Business\",IF(Mileage[[#This Row],[Expense Label]]=\"Training/Conference\",\"Mileage - Private Vehicle\",IF(ISBLANK(E80),\" \",))))","v":" "},null,null,null,null,null,null,{"$f":"SUM(Mileage[[#This Row],[Mileage]]*H3)","v":0}]
[null,null,null,null,null,{"$f":"(IF(Mileage[[#This Row],[Expense Label]]=\"Official Business\",\"Mileage - Official Business\",IF(Mileage[[#This Row],[Expense Label]]=\"Training/Conference\",\"Mileage - Private Vehicle\",IF(ISBLANK(E81),\" \",))))","v":" "},null,null,null,null,null,null,{"$f":"SUM(Mileage[[#This Row],[Mileage]]*H3)","v":0}]
[null,null,null,null,null,{"$f":"(IF(Mileage[[#This Row],[Expense Label]]=\"Official Business\",\"Mileage - Official Business\",IF(Mileage[[#This Row],[Expense Label]]=\"Training/Conference\",\"Mileage - Private Vehicle\",IF(ISBLANK(E82),\" \",))))","v":" "},null,null,null,null,null,null,{"$f":"SUM(Mileage[[#This Row],[Mileage]]*H3)","v":0}]
[null,null,null,null,null,{"$f":"(IF(Mileage[[#This Row],[Expense Label]]=\"Official Business\",\"Mileage - Official Business\",IF(Mileage[[#This Row],[Expense Label]]=\"Training/Conference\",\"Mileage - Private Vehicle\",IF(ISBLANK(E83),\" \",))))","v":" "},null,null,null,null,null,null,{"$f":"SUM(Mileage[[#This Row],[Mileage]]*H3)","v":0}]
[null,null,null,null,null,{"$f":"(IF(Mileage[[#This Row],[Expense Label]]=\"Official Business\",\"Mileage - Official Business\",IF(Mileage[[#This Row],[Expense Label]]=\"Training/Conference\",\"Mileage - Private Vehicle\",IF(ISBLANK(E84),\" \",))))","v":" "},null,null,null,null,null,null,{"$f":"SUM(Mileage[[#This Row],[Mileage]]*H3)","v":0}]
[null,null,null,null,null,{"$f":"(IF(Mileage[[#This Row],[Expense Label]]=\"Official Business\",\"Mileage - Official Business\",IF(Mileage[[#This Row],[Expense Label]]=\"Training/Conference\",\"Mileage - Private Vehicle\",IF(ISBLANK(E85),\" \",))))","v":" "},null,null,null,null,null,null,{"$f":"SUM(Mileage[[#This Row],[Mileage]]*H3)","v":0}]
[null,null,null,null,null,{"$f":"(IF(Mileage[[#This Row],[Expense Label]]=\"Official Business\",\"Mileage - Official Business\",IF(Mileage[[#This Row],[Expense Label]]=\"Training/Conference\",\"Mileage - Private Vehicle\",IF(ISBLANK(E86),\" \",))))","v":" "},null,null,null,null,null,null,{"$f":"SUM(Mileage[[#This Row],[Mileage]]*H3)","v":0}]
[null,null,null,null,null,{"$f":"(IF(Mileage[[#This Row],[Expense Label]]=\"Official Business\",\"Mileage - Official Business\",IF(Mileage[[#This Row],[Expense Label]]=\"Training/Conference\",\"Mileage - Private Vehicle\",IF(ISBLANK(E87),\" \",))))","v":" "},null,null,null,null,null,null,{"$f":"SUM(Mileage[[#This Row],[Mileage]]*H3)","v":0}]
[null,null,null,null,null,{"$f":"(IF(Mileage[[#This Row],[Expense Label]]=\"Official Business\",\"Mileage - Official Business\",IF(Mileage[[#This Row],[Expense Label]]=\"Training/Conference\",\"Mileage - Private Vehicle\",IF(ISBLANK(E88),\" \",))))","v":" "},null,null,null,null,null,null,{"$f":"SUM(Mileage[[#This Row],[Mileage]]*H3)","v":0}]
[null,null,null,null,null,{"$f":"(IF(Mileage[[#This Row],[Expense Label]]=\"Official Business\",\"Mileage - Official Business\",IF(Mileage[[#This Row],[Expense Label]]=\"Training/Conference\",\"Mileage - Private Vehicle\",IF(ISBLANK(E89),\" \",))))","v":" "},null,null,null,null,null,null,{"$f":"SUM(Mileage[[#This Row],[Mileage]]*H3)","v":0}]
[null,null,null,null,null,{"$f":"(IF(Mileage[[#This Row],[Expense Label]]=\"Official Business\",\"Mileage - Official Business\",IF(Mileage[[#This Row],[Expense Label]]=\"Training/Conference\",\"Mileage - Private Vehicle\",IF(ISBLANK(E90),\" \",))))","v":" "},null,null,null,null,null,null,{"$f":"SUM(Mileage[[#This Row],[Mileage]]*H3)","v":0}]
[null,null,null,null,null,{"$f":"(IF(Mileage[[#This Row],[Expense Label]]=\"Official Business\",\"Mileage - Official Business\",IF(Mileage[[#This Row],[Expense Label]]=\"Training/Conference\",\"Mileage - Private Vehicle\",IF(ISBLANK(E91),\" \",))))","v":" "},null,null,null,null,null,null,{"$f":"SUM(Mileage[[#This Row],[Mileage]]*H3)","v":0}]
[null,null,null,null,null,{"$f":"(IF(Mileage[[#This Row],[Expense Label]]=\"Official Business\",\"Mileage - Official Business\",IF(Mileage[[#This Row],[Expense Label]]=\"Training/Conference\",\"Mileage - Private Vehicle\",IF(ISBLANK(E92),\" \",))))","v":" "},null,null,null,null,null,null,{"$f":"SUM(Mileage[[#This Row],[Mileage]]*H3)","v":0}]
[null,null,null,null,null,{"$f":"(IF(Mileage[[#This Row],[Expense Label]]=\"Official Business\",\"Mileage - Official Business\",IF(Mileage[[#This Row],[Expense Label]]=\"Training/Conference\",\"Mileage - Private Vehicle\",IF(ISBLANK(E93),\" \",))))","v":" "},null,null,null,null,null,null,{"$f":"SUM(Mileage[[#This Row],[Mileage]]*H3)","v":0}]
[null,null,null,null,null,{"$f":"(IF(Mileage[[#This Row],[Expense Label]]=\"Official Business\",\"Mileage - Official Business\",IF(Mileage[[#This Row],[Expense Label]]=\"Training/Conference\",\"Mileage - Private Vehicle\",IF(ISBLANK(E94),\" \",))))","v":" "},null,null,null,null,null,null,{"$f":"SUM(Mileage[[#This Row],[Mileage]]*H3)","v":0}]
[null,null,null,null,null,{"$f":"(IF(Mileage[[#This Row],[Expense Label]]=\"Official Business\",\"Mileage - Official Business\",IF(Mileage[[#This Row],[Expense Label]]=\"Training/Conference\",\"Mileage - Private Vehicle\",IF(ISBLANK(E95),\" \",))))","v":" "},null,null,null,null,null,null,{"$f":"SUM(Mileage[[#This Row],[Mileage]]*H3)","v":0}]
[null,null,null,null,null,{"$f":"(IF(Mileage[[#This Row],[Expense Label]]=\"Official Business\",\"Mileage - Official Business\",IF(Mileage[[#This Row],[Expense Label]]=\"Training/Conference\",\"Mileage - Private Vehicle\",IF(ISBLANK(E96),\" \",))))","v":" "},null,null,null,null,null,null,{"$f":"SUM(Mileage[[#This Row],[Mileage]]*H3)","v":0}]
[null,null,null,null,null,{"$f":"(IF(Mileage[[#This Row],[Expense Label]]=\"Official Business\",\"Mileage - Official Business\",IF(Mileage[[#This Row],[Expense Label]]=\"Training/Conference\",\"Mileage - Private Vehicle\",IF(ISBLANK(E97),\" \",))))","v":" "},null,null,null,null,null,null,{"$f":"SUM(Mileage[[#This Row],[Mileage]]*H3)","v":0}]
[null,null,null,null,null,{"$f":"(IF(Mileage[[#This Row],[Expense Label]]=\"Official Business\",\"Mileage - Official Business\",IF(Mileage[[#This Row],[Expense Label]]=\"Training/Conference\",\"Mileage - Private Vehicle\",IF(ISBLANK(E98),\" \",))))","v":" "},null,null,null,null,null,null,{"$f":"SUM(Mileage[[#This Row],[Mileage]]*H3)","v":0}]
[null,null,null,null,null,{"$f":"(IF(Mileage[[#This Row],[Expense Label]]=\"Official Business\",\"Mileage - Official Business\",IF(Mileage[[#This Row],[Expense Label]]=\"Training/Conference\",\"Mileage - Private Vehicle\",IF(ISBLANK(E99),\" \",))))","v":" "},null,null,null,null,null,null,{"$f":"SUM(Mileage[[#This Row],[Mileage]]*H3)","v":0}]
[null,null,null,null,null,{"$f":"(IF(Mileage[[#This Row],[Expense Label]]=\"Official Business\",\"Mileage - Official Business\",IF(Mileage[[#This Row],[Expense Label]]=\"Training/Conference\",\"Mileage - Private Vehicle\",IF(ISBLANK(E100),\" \",))))","v":" "},null,null,null,null,null,null,{"$f":"SUM(Mileage[[#This Row],[Mileage]]*H3)","v":0}]
[null,null,null,null,null,{"$f":"(IF(Mileage[[#This Row],[Expense Label]]=\"Official Business\",\"Mileage - Official Business\",IF(Mileage[[#This Row],[Expense Label]]=\"Training/Conference\",\"Mileage - Private Vehicle\",IF(ISBLANK(E101),\" \",))))","v":" "},null,null,null,null,null,null,{"$f":"SUM(Mileage[[#This Row],[Mileage]]*H3)","v":0}]
[null,null,null,null,null,{"$f":"(IF(Mileage[[#This Row],[Expense Label]]=\"Official Business\",\"Mileage - Official Business\",IF(Mileage[[#This Row],[Expense Label]]=\"Training/Conference\",\"Mileage - Private Vehicle\",IF(ISBLANK(E102),\" \",))))","v":" "},null,null,null,null,null,null,{"$f":"SUM(Mileage[[#This Row],[Mileage]]*H3)","v":0}]
[null,null,null,null,null,{"$f":"(IF(Mileage[[#This Row],[Expense Label]]=\"Official Business\",\"Mileage - Official Business\",IF(Mileage[[#This Row],[Expense Label]]=\"Training/Conference\",\"Mileage - Private Vehicle\",IF(ISBLANK(E103),\" \",))))","v":" "},null,null,null,null,null,null,{"$f":"SUM(Mileage[[#This Row],[Mileage]]*H3)","v":0}]
[null,null,null,null,null,{"$f":"(IF(Mileage[[#This Row],[Expense Label]]=\"Official Business\",\"Mileage - Official Business\",IF(Mileage[[#This Row],[Expense Label]]=\"Training/Conference\",\"Mileage - Private Vehicle\",IF(ISBLANK(E104),\" \",))))","v":" "},null,null,null,null,null,null,{"$f":"SUM(Mileage[[#This Row],[Mileage]]*H3)","v":0}]
[null,null,null,null,null,{"$f":"(IF(Mileage[[#This Row],[Expense Label]]=\"Official Business\",\"Mileage - Official Business\",IF(Mileage[[#This Row],[Expense Label]]=\"Training/Conference\",\"Mileage - Private Vehicle\",IF(ISBLANK(E105),\" \",))))","v":" "},null,null,null,null,null,null,{"$f":"SUM(Mileage[[#This Row],[Mileage]]*H3)","v":0}]
[null,null,null,null,null,{"$f":"(IF(Mileage[[#This Row],[Expense Label]]=\"Official Business\",\"Mileage - Official Business\",IF(Mileage[[#This Row],[Expense Label]]=\"Training/Conference\",\"Mileage - Private Vehicle\",IF(ISBLANK(E106),\" \",))))","v":" "},null,null,null,null,null,null,{"$f":"SUM(Mileage[[#This Row],[Mileage]]*H3)","v":0}]
[null,null,null,null,null,{"$f":"(IF(Mileage[[#This Row],[Expense Label]]=\"Official Business\",\"Mileage - Official Business\",IF(Mileage[[#This Row],[Expense Label]]=\"Training/Conference\",\"Mileage - Private Vehicle\",IF(ISBLANK(E107),\" \",))))","v":" "},null,null,null,null,null,null,{"$f":"SUM(Mileage[[#This Row],[Mileage]]*H3)","v":0}]
[null,null,null,null,null,{"$f":"(IF(Mileage[[#This Row],[Expense Label]]=\"Official Business\",\"Mileage - Official Business\",IF(Mileage[[#This Row],[Expense Label]]=\"Training/Conference\",\"Mileage - Private Vehicle\",IF(ISBLANK(E108),\" \",))))","v":" "},null,null,null,null,null,null,{"$f":"SUM(Mileage[[#This Row],[Mileage]]*H3)","v":0}]
[null,null,null,null,null,{"$f":"(IF(Mileage[[#This Row],[Expense Label]]=\"Official Business\",\"Mileage - Official Business\",IF(Mileage[[#This Row],[Expense Label]]=\"Training/Conference\",\"Mileage - Private Vehicle\",IF(ISBLANK(E109),\" \",))))","v":" "},null,null,null,null,null,null,{"$f":"SUM(Mileage[[#This Row],[Mileage]]*H3)","v":0}]
[null,null,null,null,null,{"$f":"(IF(Mileage[[#This Row],[Expense Label]]=\"Official Business\",\"Mileage - Official Business\",IF(Mileage[[#This Row],[Expense Label]]=\"Training/Conference\",\"Mileage - Private Vehicle\",IF(ISBLANK(E110),\" \",))))","v":" "},null,null,null,null,null,null,{"$f":"SUM(Mileage[[#This Row],[Mileage]]*H3)","v":0}]
[null,null,null,null,null,{"$f":"(IF(Mileage[[#This Row],[Expense Label]]=\"Official Business\",\"Mileage - Official Business\",IF(Mileage[[#This Row],[Expense Label]]=\"Training/Conference\",\"Mileage - Private Vehicle\",IF(ISBLANK(E111),\" \",))))","v":" "},null,null,null,null,null,null,{"$f":"SUM(Mileage[[#This Row],[Mileage]]*H3)","v":0}]
[null,null,null,null,null,{"$f":"(IF(Mileage[[#This Row],[Expense Label]]=\"Official Business\",\"Mileage - Official Business\",IF(Mileage[[#This Row],[Expense Label]]=\"Training/Conference\",\"Mileage - Private Vehicle\",IF(ISBLANK(E112),\" \",))))","v":" "},null,null,null,null,null,null,{"$f":"SUM(Mileage[[#This Row],[Mileage]]*H3)","v":0}]
[null,null,null,null,null,{"$f":"(IF(Mileage[[#This Row],[Expense Label]]=\"Official Business\",\"Mileage - Official Business\",IF(Mileage[[#This Row],[Expense Label]]=\"Training/Conference\",\"Mileage - Private Vehicle\",IF(ISBLANK(E113),\" \",))))","v":" "},null,null,null,null,null,null,{"$f":"SUM(Mileage[[#This Row],[Mileage]]*H3)","v":0}]
[null,null,null,null,null,{"$f":"(IF(Mileage[[#This Row],[Expense Label]]=\"Official Business\",\"Mileage - Official Business\",IF(Mileage[[#This Row],[Expense Label]]=\"Training/Conference\",\"Mileage - Private Vehicle\",IF(ISBLANK(E114),\" \",))))","v":" "},null,null,null,null,null,null,{"$f":"SUM(Mileage[[#This Row],[Mileage]]*H3)","v":0}]
[null,null,null,null,null,{"$f":"(IF(Mileage[[#This Row],[Expense Label]]=\"Official Business\",\"Mileage - Official Business\",IF(Mileage[[#This Row],[Expense Label]]=\"Training/Conference\",\"Mileage - Private Vehicle\",IF(ISBLANK(E115),\" \",))))","v":" "},null,null,null,null,null,null,{"$f":"SUM(Mileage[[#This Row],[Mileage]]*H3)","v":0}]
[null,null,null,null,null,{"$f":"(IF(Mileage[[#This Row],[Expense Label]]=\"Official Business\",\"Mileage - Official Business\",IF(Mileage[[#This Row],[Expense Label]]=\"Training/Conference\",\"Mileage - Private Vehicle\",IF(ISBLANK(E116),\" \",))))","v":" "},null,null,null,null,null,null,{"$f":"SUM(Mileage[[#This Row],[Mileage]]*H3)","v":0}]
[null,null,null,null,null,{"$f":"(IF(Mileage[[#This Row],[Expense Label]]=\"Official Business\",\"Mileage - Official Business\",IF(Mileage[[#This Row],[Expense Label]]=\"Training/Conference\",\"Mileage - Private Vehicle\",IF(ISBLANK(E117),\" \",))))","v":" "},null,null,null,null,null,null,{"$f":"SUM(Mileage[[#This Row],[Mileage]]*H3)","v":0}]
[null,null,null,null,null,{"$f":"(IF(Mileage[[#This Row],[Expense Label]]=\"Official Business\",\"Mileage - Official Business\",IF(Mileage[[#This Row],[Expense Label]]=\"Training/Conference\",\"Mileage - Private Vehicle\",IF(ISBLANK(E118),\" \",))))","v":" "},null,null,null,null,null,null,{"$f":"SUM(Mileage[[#This Row],[Mileage]]*H3)","v":0}]
[null,null,null,null,null,{"$f":"(IF(Mileage[[#This Row],[Expense Label]]=\"Official Business\",\"Mileage - Official Business\",IF(Mileage[[#This Row],[Expense Label]]=\"Training/Conference\",\"Mileage - Private Vehicle\",IF(ISBLANK(E119),\" \",))))","v":" "},null,null,null,null,null,null,{"$f":"SUM(Mileage[[#This Row],[Mileage]]*H3)","v":0}]
[null,null,null,null,null,{"$f":"(IF(Mileage[[#This Row],[Expense Label]]=\"Official Business\",\"Mileage - Official Business\",IF(Mileage[[#This Row],[Expense Label]]=\"Training/Conference\",\"Mileage - Private Vehicle\",IF(ISBLANK(E120),\" \",))))","v":" "},null,null,null,null,null,null,{"$f":"SUM(Mileage[[#This Row],[Mileage]]*H3)","v":0}]
[null,null,null,null,null,{"$f":"(IF(Mileage[[#This Row],[Expense Label]]=\"Official Business\",\"Mileage - Official Business\",IF(Mileage[[#This Row],[Expense Label]]=\"Training/Conference\",\"Mileage - Private Vehicle\",IF(ISBLANK(E121),\" \",))))","v":" "},null,null,null,null,null,null,{"$f":"SUM(Mileage[[#This Row],[Mileage]]*H3)","v":0}]
[null,null,null,null,null,{"$f":"(IF(Mileage[[#This Row],[Expense Label]]=\"Official Business\",\"Mileage - Official Business\",IF(Mileage[[#This Row],[Expense Label]]=\"Training/Conference\",\"Mileage - Private Vehicle\",IF(ISBLANK(E122),\" \",))))","v":" "},null,null,null,null,null,null,{"$f":"SUM(Mileage[[#This Row],[Mileage]]*H3)","v":0}]
[null,null,null,null,null,{"$f":"(IF(Mileage[[#This Row],[Expense Label]]=\"Official Business\",\"Mileage - Official Business\",IF(Mileage[[#This Row],[Expense Label]]=\"Training/Conference\",\"Mileage - Private Vehicle\",IF(ISBLANK(E123),\" \",))))","v":" "},null,null,null,null,null,null,{"$f":"SUM(Mileage[[#This Row],[Mileage]]*H3)","v":0}]
[null,null,null,null,null,{"$f":"(IF(Mileage[[#This Row],[Expense Label]]=\"Official Business\",\"Mileage - Official Business\",IF(Mileage[[#This Row],[Expense Label]]=\"Training/Conference\",\"Mileage - Private Vehicle\",IF(ISBLANK(E124),\" \",))))","v":" "},null,null,null,null,null,null,{"$f":"SUM(Mileage[[#This Row],[Mileage]]*H3)","v":0}]
[null,null,null,null,null,{"$f":"(IF(Mileage[[#This Row],[Expense Label]]=\"Official Business\",\"Mileage - Official Business\",IF(Mileage[[#This Row],[Expense Label]]=\"Training/Conference\",\"Mileage - Private Vehicle\",IF(ISBLANK(E125),\" \",))))","v":" "},null,null,null,null,null,null,{"$f":"SUM(Mileage[[#This Row],[Mileage]]*H3)","v":0}]
[null,null,null,null,null,{"$f":"(IF(Mileage[[#This Row],[Expense Label]]=\"Official Business\",\"Mileage - Official Business\",IF(Mileage[[#This Row],[Expense Label]]=\"Training/Conference\",\"Mileage - Private Vehicle\",IF(ISBLANK(E126),\" \",))))","v":" "},null,null,null,null,null,null,{"$f":"SUM(Mileage[[#This Row],[Mileage]]*H3)","v":0}]
[null,null,null,null,null,{"$f":"(IF(Mileage[[#This Row],[Expense Label]]=\"Official Business\",\"Mileage - Official Business\",IF(Mileage[[#This Row],[Expense Label]]=\"Training/Conference\",\"Mileage - Private Vehicle\",IF(ISBLANK(E127),\" \",))))","v":" "},null,null,null,null,null,null,{"$f":"SUM(Mileage[[#This Row],[Mileage]]*H3)","v":0}]
[null,null,null,null,null,{"$f":"(IF(Mileage[[#This Row],[Expense Label]]=\"Official Business\",\"Mileage - Official Business\",IF(Mileage[[#This Row],[Expense Label]]=\"Training/Conference\",\"Mileage - Private Vehicle\",IF(ISBLANK(E128),\" \",))))","v":" "},null,null,null,null,null,null,{"$f":"SUM(Mileage[[#This Row],[Mileage]]*H3)","v":0}]
[null,null,null,null,null,{"$f":"(IF(Mileage[[#This Row],[Expense Label]]=\"Official Business\",\"Mileage - Official Business\",IF(Mileage[[#This Row],[Expense Label]]=\"Training/Conference\",\"Mileage - Private Vehicle\",IF(ISBLANK(E129),\" \",))))","v":" "},null,null,null,null,null,null,{"$f":"SUM(Mileage[[#This Row],[Mileage]]*H3)","v":0}]
[null,null,null,null,null,{"$f":"(IF(Mileage[[#This Row],[Expense Label]]=\"Official Business\",\"Mileage - Official Business\",IF(Mileage[[#This Row],[Expense Label]]=\"Training/Conference\",\"Mileage - Private Vehicle\",IF(ISBLANK(E130),\" \",))))","v":" "},null,null,null,null,null,null,{"$f":"SUM(Mileage[[#This Row],[Mileage]]*H3)","v":0}]
[null,null,null,null,null,{"$f":"(IF(Mileage[[#This Row],[Expense Label]]=\"Official Business\",\"Mileage - Official Business\",IF(Mileage[[#This Row],[Expense Label]]=\"Training/Conference\",\"Mileage - Private Vehicle\",IF(ISBLANK(E131),\" \",))))","v":" "},null,null,null,null,null,null,{"$f":"SUM(Mileage[[#This Row],[Mileage]]*H3)","v":0}]
[null,null,null,null,null,{"$f":"(IF(Mileage[[#This Row],[Expense Label]]=\"Official Business\",\"Mileage - Official Business\",IF(Mileage[[#This Row],[Expense Label]]=\"Training/Conference\",\"Mileage - Private Vehicle\",IF(ISBLANK(E132),\" \",))))","v":" "},null,null,null,null,null,null,{"$f":"SUM(Mileage[[#This Row],[Mileage]]*H3)","v":0}]
[null,null,null,null,null,{"$f":"(IF(Mileage[[#This Row],[Expense Label]]=\"Official Business\",\"Mileage - Official Business\",IF(Mileage[[#This Row],[Expense Label]]=\"Training/Conference\",\"Mileage - Private Vehicle\",IF(ISBLANK(E133),\" \",))))","v":" "},null,null,null,null,null,null,{"$f":"SUM(Mileage[[#This Row],[Mileage]]*H3)","v":0}]
[null,null,null,null,null,{"$f":"(IF(Mileage[[#This Row],[Expense Label]]=\"Official Business\",\"Mileage - Official Business\",IF(Mileage[[#This Row],[Expense Label]]=\"Training/Conference\",\"Mileage - Private Vehicle\",IF(ISBLANK(E134),\" \",))))","v":" "},null,null,null,null,null,null,{"$f":"SUM(Mileage[[#This Row],[Mileage]]*H3)","v":0}]
[null,null,null,null,null,{"$f":"(IF(Mileage[[#This Row],[Expense Label]]=\"Official Business\",\"Mileage - Official Business\",IF(Mileage[[#This Row],[Expense Label]]=\"Training/Conference\",\"Mileage - Private Vehicle\",IF(ISBLANK(E135),\" \",))))","v":" "},null,null,null,null,null,null,{"$f":"SUM(Mileage[[#This Row],[Mileage]]*H3)","v":0}]
[null,null,null,null,null,{"$f":"(IF(Mileage[[#This Row],[Expense Label]]=\"Official Business\",\"Mileage - Official Business\",IF(Mileage[[#This Row],[Expense Label]]=\"Training/Conference\",\"Mileage - Private Vehicle\",IF(ISBLANK(E136),\" \",))))","v":" "},null,null,null,null,null,null,{"$f":"SUM(Mileage[[#This Row],[Mileage]]*H3)","v":0}]
[null,null,null,null,null,{"$f":"(IF(Mileage[[#This Row],[Expense Label]]=\"Official Business\",\"Mileage - Official Business\",IF(Mileage[[#This Row],[Expense Label]]=\"Training/Conference\",\"Mileage - Private Vehicle\",IF(ISBLANK(E137),\" \",))))","v":" "},null,null,null,null,null,null,{"$f":"SUM(Mileage[[#This Row],[Mileage]]*H3)","v":0}]
[null,null,null,null,null,{"$f":"(IF(Mileage[[#This Row],[Expense Label]]=\"Official Business\",\"Mileage - Official Business\",IF(Mileage[[#This Row],[Expense Label]]=\"Training/Conference\",\"Mileage - Private Vehicle\",IF(ISBLANK(E138),\" \",))))","v":" "},null,null,null,null,null,null,{"$f":"SUM(Mileage[[#This Row],[Mileage]]*H3)","v":0}]
[null,null,null,null,null,{"$f":"(IF(Mileage[[#This Row],[Expense Label]]=\"Official Business\",\"Mileage - Official Business\",IF(Mileage[[#This Row],[Expense Label]]=\"Training/Conference\",\"Mileage - Private Vehicle\",IF(ISBLANK(E139),\" \",))))","v":" "},null,null,null,null,null,null,{"$f":"SUM(Mileage[[#This Row],[Mileage]]*H3)","v":0}]
[null,null,null,null,null,{"$f":"(IF(Mileage[[#This Row],[Expense Label]]=\"Official Business\",\"Mileage - Official Business\",IF(Mileage[[#This Row],[Expense Label]]=\"Training/Conference\",\"Mileage - Private Vehicle\",IF(ISBLANK(E140),\" \",))))","v":" "},null,null,null,null,null,null,{"$f":"SUM(Mileage[[#This Row],[Mileage]]*H3)","v":0}]
[null,null,null,null,null,{"$f":"(IF(Mileage[[#This Row],[Expense Label]]=\"Official Business\",\"Mileage - Official Business\",IF(Mileage[[#This Row],[Expense Label]]=\"Training/Conference\",\"Mileage - Private Vehicle\",IF(ISBLANK(E141),\" \",))))","v":" "},null,null,null,null,null,null,{"$f":"SUM(Mileage[[#This Row],[Mileage]]*H3)","v":0}]
[null,null,null,null,null,{"$f":"(IF(Mileage[[#This Row],[Expense Label]]=\"Official Business\",\"Mileage - Official Business\",IF(Mileage[[#This Row],[Expense Label]]=\"Training/Conference\",\"Mileage - Private Vehicle\",IF(ISBLANK(E142),\" \",))))","v":" "},null,null,null,null,null,null,{"$f":"SUM(Mileage[[#This Row],[Mileage]]*H3)","v":0}]
[null,null,null,null,null,{"$f":"(IF(Mileage[[#This Row],[Expense Label]]=\"Official Business\",\"Mileage - Official Business\",IF(Mileage[[#This Row],[Expense Label]]=\"Training/Conference\",\"Mileage - Private Vehicle\",IF(ISBLANK(E143),\" \",))))","v":" "},null,null,null,null,null,null,{"$f":"SUM(Mileage[[#This Row],[Mileage]]*H3)","v":0}]
[null,null,null,null,null,{"$f":"(IF(Mileage[[#This Row],[Expense Label]]=\"Official Business\",\"Mileage - Official Business\",IF(Mileage[[#This Row],[Expense Label]]=\"Training/Conference\",\"Mileage - Private Vehicle\",IF(ISBLANK(E144),\" \",))))","v":" "},null,null,null,null,null,null,{"$f":"SUM(Mileage[[#This Row],[Mileage]]*H3)","v":0}]
[null,null,null,null,null,{"$f":"(IF(Mileage[[#This Row],[Expense Label]]=\"Official Business\",\"Mileage - Official Business\",IF(Mileage[[#This Row],[Expense Label]]=\"Training/Conference\",\"Mileage - Private Vehicle\",IF(ISBLANK(E145),\" \",))))","v":" "},null,null,null,null,null,null,{"$f":"SUM(Mileage[[#This Row],[Mileage]]*H3)","v":0}]
[null,null,null,null,null,{"$f":"(IF(Mileage[[#This Row],[Expense Label]]=\"Official Business\",\"Mileage - Official Business\",IF(Mileage[[#This Row],[Expense Label]]=\"Training/Conference\",\"Mileage - Private Vehicle\",IF(ISBLANK(E146),\" \",))))","v":" "},null,null,null,null,null,null,{"$f":"SUM(Mileage[[#This Row],[Mileage]]*H3)","v":0}]
[null,null,null,null,null,{"$f":"(IF(Mileage[[#This Row],[Expense Label]]=\"Official Business\",\"Mileage - Official Business\",IF(Mileage[[#This Row],[Expense Label]]=\"Training/Conference\",\"Mileage - Private Vehicle\",IF(ISBLANK(E147),\" \",))))","v":" "},null,null,null,null,null,null,{"$f":"SUM(Mileage[[#This Row],[Mileage]]*H3)","v":0}]
[null,null,null,null,null,{"$f":"(IF(Mileage[[#This Row],[Expense Label]]=\"Official Business\",\"Mileage - Official Business\",IF(Mileage[[#This Row],[Expense Label]]=\"Training/Conference\",\"Mileage - Private Vehicle\",IF(ISBLANK(E148),\" \",))))","v":" "},null,null,null,null,null,null,{"$f":"SUM(Mileage[[#This Row],[Mileage]]*H3)","v":0}]
[null,null,null,null,null,{"$f":"(IF(Mileage[[#This Row],[Expense Label]]=\"Official Business\",\"Mileage - Official Business\",IF(Mileage[[#This Row],[Expense Label]]=\"Training/Conference\",\"Mileage - Private Vehicle\",IF(ISBLANK(E149),\" \",))))","v":" "},null,null,null,null,null,null,{"$f":"SUM(Mileage[[#This Row],[Mileage]]*H3)","v":0}]
[null,null,null,null,null,{"$f":"(IF(Mileage[[#This Row],[Expense Label]]=\"Official Business\",\"Mileage - Official Business\",IF(Mileage[[#This Row],[Expense Label]]=\"Training/Conference\",\"Mileage - Private Vehicle\",IF(ISBLANK(E150),\" \",))))","v":" "},null,null,null,null,null,null,{"$f":"SUM(Mileage[[#This Row],[Mileage]]*H3)","v":0}]
[null,null,null,null,null,{"$f":"(IF(Mileage[[#This Row],[Expense Label]]=\"Official Business\",\"Mileage - Official Business\",IF(Mileage[[#This Row],[Expense Label]]=\"Training/Conference\",\"Mileage - Private Vehicle\",IF(ISBLANK(E151),\" \",))))","v":" "},null,null,null,null,null,null,{"$f":"SUM(Mileage[[#This Row],[Mileage]]*H3)","v":0}]
[null,null,null,null,null,{"$f":"(IF(Mileage[[#This Row],[Expense Label]]=\"Official Business\",\"Mileage - Official Business\",IF(Mileage[[#This Row],[Expense Label]]=\"Training/Conference\",\"Mileage - Private Vehicle\",IF(ISBLANK(E152),\" \",))))","v":" "},null,null,null,null,null,null,{"$f":"SUM(Mileage[[#This Row],[Mileage]]*H3)","v":0}]
[null,null,null,null,null,{"$f":"(IF(Mileage[[#This Row],[Expense Label]]=\"Official Business\",\"Mileage - Official Business\",IF(Mileage[[#This Row],[Expense Label]]=\"Training/Conference\",\"Mileage - Private Vehicle\",IF(ISBLANK(E153),\" \",))))","v":" "},null,null,null,null,null,null,{"$f":"SUM(Mileage[[#This Row],[Mileage]]*H3)","v":0}]
[null,null,null,null,null,{"$f":"(IF(Mileage[[#This Row],[Expense Label]]=\"Official Business\",\"Mileage - Official Business\",IF(Mileage[[#This Row],[Expense Label]]=\"Training/Conference\",\"Mileage - Private Vehicle\",IF(ISBLANK(E154),\" \",))))","v":" "},null,null,null,null,null,null,{"$f":"SUM(Mileage[[#This Row],[Mileage]]*H3)","v":0}]
[null,null,null,null,null,{"$f":"(IF(Mileage[[#This Row],[Expense Label]]=\"Official Business\",\"Mileage - Official Business\",IF(Mileage[[#This Row],[Expense Label]]=\"Training/Conference\",\"Mileage - Private Vehicle\",IF(ISBLANK(E155),\" \",))))","v":" "},null,null,null,null,null,null,{"$f":"SUM(Mileage[[#This Row],[Mileage]]*H3)","v":0}]
[null,null,null,null,null,{"$f":"(IF(Mileage[[#This Row],[Expense Label]]=\"Official Business\",\"Mileage - Official Business\",IF(Mileage[[#This Row],[Expense Label]]=\"Training/Conference\",\"Mileage - Private Vehicle\",IF(ISBLANK(E156),\" \",))))","v":" "},null,null,null,null,null,null,{"$f":"SUM(Mileage[[#This Row],[Mileage]]*H3)","v":0}]
[null,null,null,null,null,{"$f":"(IF(Mileage[[#This Row],[Expense Label]]=\"Official Business\",\"Mileage - Official Business\",IF(Mileage[[#This Row],[Expense Label]]=\"Training/Conference\",\"Mileage - Private Vehicle\",IF(ISBLANK(E157),\" \",))))","v":" "},null,null,null,null,null,null,{"$f":"SUM(Mileage[[#This Row],[Mileage]]*H3)","v":0}]
[null,null,null,null,null,{"$f":"(IF(Mileage[[#This Row],[Expense Label]]=\"Official Business\",\"Mileage - Official Business\",IF(Mileage[[#This Row],[Expense Label]]=\"Training/Conference\",\"Mileage - Private Vehicle\",IF(ISBLANK(E158),\" \",))))","v":" "},null,null,null,null,null,null,{"$f":"SUM(Mileage[[#This Row],[Mileage]]*H3)","v":0}]
[null,null,null,null,null,{"$f":"(IF(Mileage[[#This Row],[Expense Label]]=\"Official Business\",\"Mileage - Official Business\",IF(Mileage[[#This Row],[Expense Label]]=\"Training/Conference\",\"Mileage - Private Vehicle\",IF(ISBLANK(E159),\" \",))))","v":" "},null,null,null,null,null,null,{"$f":"SUM(Mileage[[#This Row],[Mileage]]*H3)","v":0}]
[null,null,null,null,null,{"$f":"(IF(Mileage[[#This Row],[Expense Label]]=\"Official Business\",\"Mileage - Official Business\",IF(Mileage[[#This Row],[Expense Label]]=\"Training/Conference\",\"Mileage - Private Vehicle\",IF(ISBLANK(E160),\" \",))))","v":" "},null,null,null,null,null,null,{"$f":"SUM(Mileage[[#This Row],[Mileage]]*H3)","v":0}]
[null,null,null,null,null,{"$f":"(IF(Mileage[[#This Row],[Expense Label]]=\"Official Business\",\"Mileage - Official Business\",IF(Mileage[[#This Row],[Expense Label]]=\"Training/Conference\",\"Mileage - Private Vehicle\",IF(ISBLANK(E161),\" \",))))","v":" "},null,null,null,null,null,null,{"$f":"SUM(Mileage[[#This Row],[Mileage]]*H3)","v":0}]
[null,null,null,null,null,{"$f":"(IF(Mileage[[#This Row],[Expense Label]]=\"Official Business\",\"Mileage - Official Business\",IF(Mileage[[#This Row],[Expense Label]]=\"Training/Conference\",\"Mileage - Private Vehicle\",IF(ISBLANK(E162),\" \",))))","v":" "},null,null,null,null,null,null,{"$f":"SUM(Mileage[[#This Row],[Mileage]]*H3)","v":0}]
[null,null,null,null,null,{"$f":"(IF(Mileage[[#This Row],[Expense Label]]=\"Official Business\",\"Mileage - Official Business\",IF(Mileage[[#This Row],[Expense Label]]=\"Training/Conference\",\"Mileage - Private Vehicle\",IF(ISBLANK(E163),\" \",))))","v":" "},null,null,null,null,null,null,{"$f":"SUM(Mileage[[#This Row],[Mileage]]*H3)","v":0}]
[null,null,null,null,null,{"$f":"(IF(Mileage[[#This Row],[Expense Label]]=\"Official Business\",\"Mileage - Official Business\",IF(Mileage[[#This Row],[Expense Label]]=\"Training/Conference\",\"Mileage - Private Vehicle\",IF(ISBLANK(E164),\" \",))))","v":" "},null,null,null,null,null,null,{"$f":"SUM(Mileage[[#This Row],[Mileage]]*H3)","v":0}]
[null,null,null,null,null,{"$f":"(IF(Mileage[[#This Row],[Expense Label]]=\"Official Business\",\"Mileage - Official Business\",IF(Mileage[[#This Row],[Expense Label]]=\"Training/Conference\",\"Mileage - Private Vehicle\",IF(ISBLANK(E165),\" \",))))","v":" "},null,null,null,null,null,null,{"$f":"SUM(Mileage[[#This Row],[Mileage]]*H3)","v":0}]
[null,null,null,null,null,{"$f":"(IF(Mileage[[#This Row],[Expense Label]]=\"Official Business\",\"Mileage - Official Business\",IF(Mileage[[#This Row],[Expense Label]]=\"Training/Conference\",\"Mileage - Private Vehicle\",IF(ISBLANK(E166),\" \",))))","v":" "},null,null,null,null,null,null,{"$f":"SUM(Mileage[[#This Row],[Mileage]]*H3)","v":0}]
[null,null,null,null,null,{"$f":"(IF(Mileage[[#This Row],[Expense Label]]=\"Official Business\",\"Mileage - Official Business\",IF(Mileage[[#This Row],[Expense Label]]=\"Training/Conference\",\"Mileage - Private Vehicle\",IF(ISBLANK(E167),\" \",))))","v":" "},null,null,null,null,null,null,{"$f":"SUM(Mileage[[#This Row],[Mileage]]*H3)","v":0}]
[null,null,null,null,null,{"$f":"(IF(Mileage[[#This Row],[Expense Label]]=\"Official Business\",\"Mileage - Official Business\",IF(Mileage[[#This Row],[Expense Label]]=\"Training/Conference\",\"Mileage - Private Vehicle\",IF(ISBLANK(E168),\" \",))))","v":" "},null,null,null,null,null,null,{"$f":"SUM(Mileage[[#This Row],[Mileage]]*H3)","v":0}]
[null,null,null,null,null,{"$f":"(IF(Mileage[[#This Row],[Expense Label]]=\"Official Business\",\"Mileage - Official Business\",IF(Mileage[[#This Row],[Expense Label]]=\"Training/Conference\",\"Mileage - Private Vehicle\",IF(ISBLANK(E169),\" \",))))","v":" "},null,null,null,null,null,null,{"$f":"SUM(Mileage[[#This Row],[Mileage]]*H3)","v":0}]
[null,null,null,null,null,{"$f":"(IF(Mileage[[#This Row],[Expense Label]]=\"Official Business\",\"Mileage - Official Business\",IF(Mileage[[#This Row],[Expense Label]]=\"Training/Conference\",\"Mileage - Private Vehicle\",IF(ISBLANK(E170),\" \",))))","v":" "},null,null,null,null,null,null,{"$f":"SUM(Mileage[[#This Row],[Mileage]]*H3)","v":0}]
[null,null,null,null,null,{"$f":"(IF(Mileage[[#This Row],[Expense Label]]=\"Official Business\",\"Mileage - Official Business\",IF(Mileage[[#This Row],[Expense Label]]=\"Training/Conference\",\"Mileage - Private Vehicle\",IF(ISBLANK(E171),\" \",))))","v":" "},null,null,null,null,null,null,{"$f":"SUM(Mileage[[#This Row],[Mileage]]*H3)","v":0}]
[null,null,null,null,null,{"$f":"(IF(Mileage[[#This Row],[Expense Label]]=\"Official Business\",\"Mileage - Official Business\",IF(Mileage[[#This Row],[Expense Label]]=\"Training/Conference\",\"Mileage - Private Vehicle\",IF(ISBLANK(E172),\" \",))))","v":" "},null,null,null,null,null,null,{"$f":"SUM(Mileage[[#This Row],[Mileage]]*H3)","v":0}]
[null,null,null,null,null,{"$f":"(IF(Mileage[[#This Row],[Expense Label]]=\"Official Business\",\"Mileage - Official Business\",IF(Mileage[[#This Row],[Expense Label]]=\"Training/Conference\",\"Mileage - Private Vehicle\",IF(ISBLANK(E173),\" \",))))","v":" "},null,null,null,null,null,null,{"$f":"SUM(Mileage[[#This Row],[Mileage]]*H3)","v":0}]
[null,null,null,null,null,{"$f":"(IF(Mileage[[#This Row],[Expense Label]]=\"Official Business\",\"Mileage - Official Business\",IF(Mileage[[#This Row],[Expense Label]]=\"Training/Conference\",\"Mileage - Private Vehicle\",IF(ISBLANK(E174),\" \",))))","v":" "},null,null,null,null,null,null,{"$f":"SUM(Mileage[[#This Row],[Mileage]]*H3)","v":0}]
[null,null,null,null,null,{"$f":"(IF(Mileage[[#This Row],[Expense Label]]=\"Official Business\",\"Mileage - Official Business\",IF(Mileage[[#This Row],[Expense Label]]=\"Training/Conference\",\"Mileage - Private Vehicle\",IF(ISBLANK(E175),\" \",))))","v":" "},null,null,null,null,null,null,{"$f":"SUM(Mileage[[#This Row],[Mileage]]*H3)","v":0}]
[null,null,null,null,null,{"$f":"(IF(Mileage[[#This Row],[Expense Label]]=\"Official Business\",\"Mileage - Official Business\",IF(Mileage[[#This Row],[Expense Label]]=\"Training/Conference\",\"Mileage - Private Vehicle\",IF(ISBLANK(E176),\" \",))))","v":" "},null,null,null,null,null,null,{"$f":"SUM(Mileage[[#This Row],[Mileage]]*H3)","v":0}]
[null,null,null,null,null,{"$f":"(IF(Mileage[[#This Row],[Expense Label]]=\"Official Business\",\"Mileage - Official Business\",IF(Mileage[[#This Row],[Expense Label]]=\"Training/Conference\",\"Mileage - Private Vehicle\",IF(ISBLANK(E177),\" \",))))","v":" "},null,null,null,null,null,null,{"$f":"SUM(Mileage[[#This Row],[Mileage]]*H3)","v":0}]
[null,null,null,null,null,{"$f":"(IF(Mileage[[#This Row],[Expense Label]]=\"Official Business\",\"Mileage - Official Business\",IF(Mileage[[#This Row],[Expense Label]]=\"Training/Conference\",\"Mileage - Private Vehicle\",IF(ISBLANK(E178),\" \",))))","v":" "},null,null,null,null,null,null,{"$f":"SUM(Mileage[[#This Row],[Mileage]]*H3)","v":0}]
[null,null,null,null,null,{"$f":"(IF(Mileage[[#This Row],[Expense Label]]=\"Official Business\",\"Mileage - Official Business\",IF(Mileage[[#This Row],[Expense Label]]=\"Training/Conference\",\"Mileage - Private Vehicle\",IF(ISBLANK(E179),\" \",))))","v":" "},null,null,null,null,null,null,{"$f":"SUM(Mileage[[#This Row],[Mileage]]*H3)","v":0}]
[null,null,null,null,null,{"$f":"(IF(Mileage[[#This Row],[Expense Label]]=\"Official Business\",\"Mileage - Official Business\",IF(Mileage[[#This Row],[Expense Label]]=\"Training/Conference\",\"Mileage - Private Vehicle\",IF(ISBLANK(E180),\" \",))))","v":" "},null,null,null,null,null,null,{"$f":"SUM(Mileage[[#This Row],[Mileage]]*H3)","v":0}]
[null,null,null,null,null,{"$f":"(IF(Mileage[[#This Row],[Expense Label]]=\"Official Business\",\"Mileage - Official Business\",IF(Mileage[[#This Row],[Expense Label]]=\"Training/Conference\",\"Mileage - Private Vehicle\",IF(ISBLANK(E181),\" \",))))","v":" "},null,null,null,null,null,null,{"$f":"SUM(Mileage[[#This Row],[Mileage]]*H3)","v":0}]
[null,null,null,null,null,{"$f":"(IF(Mileage[[#This Row],[Expense Label]]=\"Official Business\",\"Mileage - Official Business\",IF(Mileage[[#This Row],[Expense Label]]=\"Training/Conference\",\"Mileage - Private Vehicle\",IF(ISBLANK(E182),\" \",))))","v":" "},null,null,null,null,null,null,{"$f":"SUM(Mileage[[#This Row],[Mileage]]*H3)","v":0}]
[null,null,null,null,null,{"$f":"(IF(Mileage[[#This Row],[Expense Label]]=\"Official Business\",\"Mileage - Official Business\",IF(Mileage[[#This Row],[Expense Label]]=\"Training/Conference\",\"Mileage - Private Vehicle\",IF(ISBLANK(E183),\" \",))))","v":" "},null,null,null,null,null,null,{"$f":"SUM(Mileage[[#This Row],[Mileage]]*H3)","v":0}]
[null,null,null,null,null,{"$f":"(IF(Mileage[[#This Row],[Expense Label]]=\"Official Business\",\"Mileage - Official Business\",IF(Mileage[[#This Row],[Expense Label]]=\"Training/Conference\",\"Mileage - Private Vehicle\",IF(ISBLANK(E184),\" \",))))","v":" "},null,null,null,null,null,null,{"$f":"SUM(Mileage[[#This Row],[Mileage]]*H3)","v":0}]
[null,null,null,null,null,{"$f":"(IF(Mileage[[#This Row],[Expense Label]]=\"Official Business\",\"Mileage - Official Business\",IF(Mileage[[#This Row],[Expense Label]]=\"Training/Conference\",\"Mileage - Private Vehicle\",IF(ISBLANK(E185),\" \",))))","v":" "},null,null,null,null,null,null,{"$f":"SUM(Mileage[[#This Row],[Mileage]]*H3)","v":0}]
[null,null,null,null,null,{"$f":"(IF(Mileage[[#This Row],[Expense Label]]=\"Official Business\",\"Mileage - Official Business\",IF(Mileage[[#This Row],[Expense Label]]=\"Training/Conference\",\"Mileage - Private Vehicle\",IF(ISBLANK(E186),\" \",))))","v":" "},null,null,null,null,null,null,{"$f":"SUM(Mileage[[#This Row],[Mileage]]*H3)","v":0}]
[null,null,null,null,null,{"$f":"(IF(Mileage[[#This Row],[Expense Label]]=\"Official Business\",\"Mileage - Official Business\",IF(Mileage[[#This Row],[Expense Label]]=\"Training/Conference\",\"Mileage - Private Vehicle\",IF(ISBLANK(E187),\" \",))))","v":" "},null,null,null,null,null,null,{"$f":"SUM(Mileage[[#This Row],[Mileage]]*H3)","v":0}]
[null,null,null,null,null,{"$f":"(IF(Mileage[[#This Row],[Expense Label]]=\"Official Business\",\"Mileage - Official Business\",IF(Mileage[[#This Row],[Expense Label]]=\"Training/Conference\",\"Mileage - Private Vehicle\",IF(ISBLANK(E188),\" \",))))","v":" "},null,null,null,null,null,null,{"$f":"SUM(Mileage[[#This Row],[Mileage]]*H3)","v":0}]
[null,null,null,null,null,{"$f":"(IF(Mileage[[#This Row],[Expense Label]]=\"Official Business\",\"Mileage - Official Business\",IF(Mileage[[#This Row],[Expense Label]]=\"Training/Conference\",\"Mileage - Private Vehicle\",IF(ISBLANK(E189),\" \",))))","v":" "},null,null,null,null,null,null,{"$f":"SUM(Mileage[[#This Row],[Mileage]]*H3)","v":0}]
[null,null,null,null,null,{"$f":"(IF(Mileage[[#This Row],[Expense Label]]=\"Official Business\",\"Mileage - Official Business\",IF(Mileage[[#This Row],[Expense Label]]=\"Training/Conference\",\"Mileage - Private Vehicle\",IF(ISBLANK(E190),\" \",))))","v":" "},null,null,null,null,null,null,{"$f":"SUM(Mileage[[#This Row],[Mileage]]*H3)","v":0}]
[null,null,null,null,null,{"$f":"(IF(Mileage[[#This Row],[Expense Label]]=\"Official Business\",\"Mileage - Official Business\",IF(Mileage[[#This Row],[Expense Label]]=\"Training/Conference\",\"Mileage - Private Vehicle\",IF(ISBLANK(E191),\" \",))))","v":" "},null,null,null,null,null,null,{"$f":"SUM(Mileage[[#This Row],[Mileage]]*H3)","v":0}]
[null,null,null,null,null,{"$f":"(IF(Mileage[[#This Row],[Expense Label]]=\"Official Business\",\"Mileage - Official Business\",IF(Mileage[[#This Row],[Expense Label]]=\"Training/Conference\",\"Mileage - Private Vehicle\",IF(ISBLANK(E192),\" \",))))","v":" "},null,null,null,null,null,null,{"$f":"SUM(Mileage[[#This Row],[Mileage]]*H3)","v":0}]
[null,null,null,null,null,{"$f":"(IF(Mileage[[#This Row],[Expense Label]]=\"Official Business\",\"Mileage - Official Business\",IF(Mileage[[#This Row],[Expense Label]]=\"Training/Conference\",\"Mileage - Private Vehicle\",IF(ISBLANK(E193),\" \",))))","v":" "},null,null,null,null,null,null,{"$f":"SUM(Mileage[[#This Row],[Mileage]]*H3)","v":0}]
[null,null,null,null,null,{"$f":"(IF(Mileage[[#This Row],[Expense Label]]=\"Official Business\",\"Mileage - Official Business\",IF(Mileage[[#This Row],[Expense Label]]=\"Training/Conference\",\"Mileage - Private Vehicle\",IF(ISBLANK(E194),\" \",))))","v":" "},null,null,null,null,null,null,{"$f":"SUM(Mileage[[#This Row],[Mileage]]*H3)","v":0}]
[null,null,null,null,null,{"$f":"(IF(Mileage[[#This Row],[Expense Label]]=\"Official Business\",\"Mileage - Official Business\",IF(Mileage[[#This Row],[Expense Label]]=\"Training/Conference\",\"Mileage - Private Vehicle\",IF(ISBLANK(E195),\" \",))))","v":" "},null,null,null,null,null,null,{"$f":"SUM(Mileage[[#This Row],[Mileage]]*H3)","v":0}]
[null,null,null,null,null,{"$f":"(IF(Mileage[[#This Row],[Expense Label]]=\"Official Business\",\"Mileage - Official Business\",IF(Mileage[[#This Row],[Expense Label]]=\"Training/Conference\",\"Mileage - Private Vehicle\",IF(ISBLANK(E196),\" \",))))","v":" "},null,null,null,null,null,null,{"$f":"SUM(Mileage[[#This Row],[Mileage]]*H3)","v":0}]
[null,null,null,null,null,{"$f":"(IF(Mileage[[#This Row],[Expense Label]]=\"Official Business\",\"Mileage - Official Business\",IF(Mileage[[#This Row],[Expense Label]]=\"Training/Conference\",\"Mileage - Private Vehicle\",IF(ISBLANK(E197),\" \",))))","v":" "},null,null,null,null,null,null,{"$f":"SUM(Mileage[[#This Row],[Mileage]]*H3)","v":0}]
[null,null,null,null,null,{"$f":"(IF(Mileage[[#This Row],[Expense Label]]=\"Official Business\",\"Mileage - Official Business\",IF(Mileage[[#This Row],[Expense Label]]=\"Training/Conference\",\"Mileage - Private Vehicle\",IF(ISBLANK(E198),\" \",))))","v":" "},null,null,null,null,null,null,{"$f":"SUM(Mileage[[#This Row],[Mileage]]*H3)","v":0}]
[null,null,null,null,null,{"$f":"(IF(Mileage[[#This Row],[Expense Label]]=\"Official Business\",\"Mileage - Official Business\",IF(Mileage[[#This Row],[Expense Label]]=\"Training/Conference\",\"Mileage - Private Vehicle\",IF(ISBLANK(E199),\" \",))))","v":" "},null,null,null,null,null,null,{"$f":"SUM(Mileage[[#This Row],[Mileage]]*H3)","v":0}]
[null,null,null,null,null,{"$f":"(IF(Mileage[[#This Row],[Expense Label]]=\"Official Business\",\"Mileage - Official Business\",IF(Mileage[[#This Row],[Expense Label]]=\"Training/Conference\",\"Mileage - Private Vehicle\",IF(ISBLANK(E200),\" \",))))","v":" "},null,null,null,null,null,null,{"$f":"SUM(Mileage[[#This Row],[Mileage]]*H3)","v":0}]
[null,null,null,null,null,{"$f":"(IF(Mileage[[#This Row],[Expense Label]]=\"Official Business\",\"Mileage - Official Business\",IF(Mileage[[#This Row],[Expense Label]]=\"Training/Conference\",\"Mileage - Private Vehicle\",IF(ISBLANK(E201),\" \",))))","v":" "},null,null,null,null,null,null,{"$f":"SUM(Mileage[[#This Row],[Mileage]]*H3)","v":0}]
[null,null,null,null,null,{"$f":"(IF(Mileage[[#This Row],[Expense Label]]=\"Official Business\",\"Mileage - Official Business\",IF(Mileage[[#This Row],[Expense Label]]=\"Training/Conference\",\"Mileage - Private Vehicle\",IF(ISBLANK(E202),\" \",))))","v":" "},null,null,null,null,null,null,{"$f":"SUM(Mileage[[#This Row],[Mileage]]*H3)","v":0}]
[null,null,null,null,null,{"$f":"(IF(Mileage[[#This Row],[Expense Label]]=\"Official Business\",\"Mileage - Official Business\",IF(Mileage[[#This Row],[Expense Label]]=\"Training/Conference\",\"Mileage - Private Vehicle\",IF(ISBLANK(E203),\" \",))))","v":" "},null,null,null,null,null,null,{"$f":"SUM(Mileage[[#This Row],[Mileage]]*H3)","v":0}]
[null,null,null,null,null,{"$f":"(IF(Mileage[[#This Row],[Expense Label]]=\"Official Business\",\"Mileage - Official Business\",IF(Mileage[[#This Row],[Expense Label]]=\"Training/Conference\",\"Mileage - Private Vehicle\",IF(ISBLANK(E204),\" \",))))","v":" "},null,null,null,null,null,null,{"$f":"SUM(Mileage[[#This Row],[Mileage]]*H3)","v":0}]
[null,null,null,null,null,{"$f":"(IF(Mileage[[#This Row],[Expense Label]]=\"Official Business\",\"Mileage - Official Business\",IF(Mileage[[#This Row],[Expense Label]]=\"Training/Conference\",\"Mileage - Private Vehicle\",IF(ISBLANK(E205),\" \",))))","v":" "},null,null,null,null,null,null,{"$f":"SUM(Mileage[[#This Row],[Mileage]]*H3)","v":0}]
[null,null,null,null,null,{"$f":"(IF(Mileage[[#This Row],[Expense Label]]=\"Official Business\",\"Mileage - Official Business\",IF(Mileage[[#This Row],[Expense Label]]=\"Training/Conference\",\"Mileage - Private Vehicle\",IF(ISBLANK(E206),\" \",))))","v":" "},null,null,null,null,null,null,{"$f":"SUM(Mileage[[#This Row],[Mileage]]*H3)","v":0}]
[null,null,null,null,null,{"$f":"(IF(Mileage[[#This Row],[Expense Label]]=\"Official Business\",\"Mileage - Official Business\",IF(Mileage[[#This Row],[Expense Label]]=\"Training/Conference\",\"Mileage - Private Vehicle\",IF(ISBLANK(E207),\" \",))))","v":" "},null,null,null,null,null,null,{"$f":"SUM(Mileage[[#This Row],[Mileage]]*H3)","v":0}]
[null,null,null,null,null,{"$f":"(IF(Mileage[[#This Row],[Expense Label]]=\"Official Business\",\"Mileage - Official Business\",IF(Mileage[[#This Row],[Expense Label]]=\"Training/Conference\",\"Mileage - Private Vehicle\",IF(ISBLANK(E208),\" \",))))","v":" "},null,null,null,null,null,null,{"$f":"SUM(Mileage[[#This Row],[Mileage]]*H3)","v":0}]
[null,null,null,null,null,{"$f":"(IF(Mileage[[#This Row],[Expense Label]]=\"Official Business\",\"Mileage - Official Business\",IF(Mileage[[#This Row],[Expense Label]]=\"Training/Conference\",\"Mileage - Private Vehicle\",IF(ISBLANK(E209),\" \",))))","v":" "},null,null,null,null,null,null,{"$f":"SUM(Mileage[[#This Row],[Mileage]]*H3)","v":0}]
[null,null,null,null,null,{"$f":"(IF(Mileage[[#This Row],[Expense Label]]=\"Official Business\",\"Mileage - Official Business\",IF(Mileage[[#This Row],[Expense Label]]=\"Training/Conference\",\"Mileage - Private Vehicle\",IF(ISBLANK(E210),\" \",))))","v":" "},null,null,null,null,null,null,{"$f":"SUM(Mileage[[#This Row],[Mileage]]*H3)","v":0}]
[null,null,null,null,null,{"$f":"(IF(Mileage[[#This Row],[Expense Label]]=\"Official Business\",\"Mileage - Official Business\",IF(Mileage[[#This Row],[Expense Label]]=\"Training/Conference\",\"Mileage - Private Vehicle\",IF(ISBLANK(E211),\" \",))))","v":" "},null,null,null,null,null,null,{"$f":"SUM(Mileage[[#This Row],[Mileage]]*H3)","v":0}]
[null,null,null,null,null,{"$f":"(IF(Mileage[[#This Row],[Expense Label]]=\"Official Business\",\"Mileage - Official Business\",IF(Mileage[[#This Row],[Expense Label]]=\"Training/Conference\",\"Mileage - Private Vehicle\",IF(ISBLANK(E212),\" \",))))","v":" "},null,null,null,null,null,null,{"$f":"SUM(Mileage[[#This Row],[Mileage]]*H3)","v":0}]
[null,null,null,null,null,{"$f":"(IF(Mileage[[#This Row],[Expense Label]]=\"Official Business\",\"Mileage - Official Business\",IF(Mileage[[#This Row],[Expense Label]]=\"Training/Conference\",\"Mileage - Private Vehicle\",IF(ISBLANK(E213),\" \",))))","v":" "},null,null,null,null,null,null,{"$f":"SUM(Mileage[[#This Row],[Mileage]]*H3)","v":0}]
[null,null,null,null,null,{"$f":"(IF(Mileage[[#This Row],[Expense Label]]=\"Official Business\",\"Mileage - Official Business\",IF(Mileage[[#This Row],[Expense Label]]=\"Training/Conference\",\"Mileage - Private Vehicle\",IF(ISBLANK(E214),\" \",))))","v":" "},null,null,null,null,null,null,{"$f":"SUM(Mileage[[#This Row],[Mileage]]*H3)","v":0}]
[null,null,null,null,null,{"$f":"(IF(Mileage[[#This Row],[Expense Label]]=\"Official Business\",\"Mileage - Official Business\",IF(Mileage[[#This Row],[Expense Label]]=\"Training/Conference\",\"Mileage - Private Vehicle\",IF(ISBLANK(E215),\" \",))))","v":" "},null,null,null,null,null,null,{"$f":"SUM(Mileage[[#This Row],[Mileage]]*H3)","v":0}]
[null,null,null,null,null,{"$f":"(IF(Mileage[[#This Row],[Expense Label]]=\"Official Business\",\"Mileage - Official Business\",IF(Mileage[[#This Row],[Expense Label]]=\"Training/Conference\",\"Mileage - Private Vehicle\",IF(ISBLANK(E216),\" \",))))","v":" "},null,null,null,null,null,null,{"$f":"SUM(Mileage[[#This Row],[Mileage]]*H3)","v":0}]
[null,null,null,null,null,{"$f":"(IF(Mileage[[#This Row],[Expense Label]]=\"Official Business\",\"Mileage - Official Business\",IF(Mileage[[#This Row],[Expense Label]]=\"Training/Conference\",\"Mileage - Private Vehicle\",IF(ISBLANK(E217),\" \",))))","v":" "},null,null,null,null,null,null,{"$f":"SUM(Mileage[[#This Row],[Mileage]]*H3)","v":0}]
[null,null,null,null,null,{"$f":"(IF(Mileage[[#This Row],[Expense Label]]=\"Official Business\",\"Mileage - Official Business\",IF(Mileage[[#This Row],[Expense Label]]=\"Training/Conference\",\"Mileage - Private Vehicle\",IF(ISBLANK(E218),\" \",))))","v":" "},null,null,null,null,null,null,{"$f":"SUM(Mileage[[#This Row],[Mileage]]*H3)","v":0}]
[null,null,null,null,null,{"$f":"(IF(Mileage[[#This Row],[Expense Label]]=\"Official Business\",\"Mileage - Official Business\",IF(Mileage[[#This Row],[Expense Label]]=\"Training/Conference\",\"Mileage - Private Vehicle\",IF(ISBLANK(E219),\" \",))))","v":" "},null,null,null,null,null,null,{"$f":"SUM(Mileage[[#This Row],[Mileage]]*H3)","v":0}]
[null,null,null,null,null,{"$f":"(IF(Mileage[[#This Row],[Expense Label]]=\"Official Business\",\"Mileage - Official Business\",IF(Mileage[[#This Row],[Expense Label]]=\"Training/Conference\",\"Mileage - Private Vehicle\",IF(ISBLANK(E220),\" \",))))","v":" "},null,null,null,null,null,null,{"$f":"SUM(Mileage[[#This Row],[Mileage]]*H3)","v":0}]
[null,null,null,null,null,{"$f":"(IF(Mileage[[#This Row],[Expense Label]]=\"Official Business\",\"Mileage - Official Business\",IF(Mileage[[#This Row],[Expense Label]]=\"Training/Conference\",\"Mileage - Private Vehicle\",IF(ISBLANK(E221),\" \",))))","v":" "},null,null,null,null,null,null,{"$f":"SUM(Mileage[[#This Row],[Mileage]]*H3)","v":0}]
[null,null,null,null,null,{"$f":"(IF(Mileage[[#This Row],[Expense Label]]=\"Official Business\",\"Mileage - Official Business\",IF(Mileage[[#This Row],[Expense Label]]=\"Training/Conference\",\"Mileage - Private Vehicle\",IF(ISBLANK(E222),\" \",))))","v":" "},null,null,null,null,null,null,{"$f":"SUM(Mileage[[#This Row],[Mileage]]*H3)","v":0}]
[null,null,null,null,null,{"$f":"(IF(Mileage[[#This Row],[Expense Label]]=\"Official Business\",\"Mileage - Official Business\",IF(Mileage[[#This Row],[Expense Label]]=\"Training/Conference\",\"Mileage - Private Vehicle\",IF(ISBLANK(E223),\" \",))))","v":" "},null,null,null,null,null,null,{"$f":"SUM(Mileage[[#This Row],[Mileage]]*H3)","v":0}]
[null,null,null,null,null,{"$f":"(IF(Mileage[[#This Row],[Expense Label]]=\"Official Business\",\"Mileage - Official Business\",IF(Mileage[[#This Row],[Expense Label]]=\"Training/Conference\",\"Mileage - Private Vehicle\",IF(ISBLANK(E224),\" \",))))","v":" "},null,null,null,null,null,null,{"$f":"SUM(Mileage[[#This Row],[Mileage]]*H3)","v":0}]
[null,null,null,null,null,{"$f":"(IF(Mileage[[#This Row],[Expense Label]]=\"Official Business\",\"Mileage - Official Business\",IF(Mileage[[#This Row],[Expense Label]]=\"Training/Conference\",\"Mileage - Private Vehicle\",IF(ISBLANK(E225),\" \",))))","v":" "},null,null,null,null,null,null,{"$f":"SUM(Mileage[[#This Row],[Mileage]]*H3)","v":0}]
[null,null,null,null,null,{"$f":"(IF(Mileage[[#This Row],[Expense Label]]=\"Official Business\",\"Mileage - Official Business\",IF(Mileage[[#This Row],[Expense Label]]=\"Training/Conference\",\"Mileage - Private Vehicle\",IF(ISBLANK(E226),\" \",))))","v":" "},null,null,null,null,null,null,{"$f":"SUM(Mileage[[#This Row],[Mileage]]*H3)","v":0}]
[null,null,null,null,null,{"$f":"(IF(Mileage[[#This Row],[Expense Label]]=\"Official Business\",\"Mileage - Official Business\",IF(Mileage[[#This Row],[Expense Label]]=\"Training/Conference\",\"Mileage - Private Vehicle\",IF(ISBLANK(E227),\" \",))))","v":" "},null,null,null,null,null,null,{"$f":"SUM(Mileage[[#This Row],[Mileage]]*H3)","v":0}]
[null,null,null,null,null,{"$f":"(IF(Mileage[[#This Row],[Expense Label]]=\"Official Business\",\"Mileage - Official Business\",IF(Mileage[[#This Row],[Expense Label]]=\"Training/Conference\",\"Mileage - Private Vehicle\",IF(ISBLANK(E228),\" \",))))","v":" "},null,null,null,null,null,null,{"$f":"SUM(Mileage[[#This Row],[Mileage]]*H3)","v":0}]
[null,null,null,null,null,{"$f":"(IF(Mileage[[#This Row],[Expense Label]]=\"Official Business\",\"Mileage - Official Business\",IF(Mileage[[#This Row],[Expense Label]]=\"Training/Conference\",\"Mileage - Private Vehicle\",IF(ISBLANK(E229),\" \",))))","v":" "},null,null,null,null,null,null,{"$f":"SUM(Mileage[[#This Row],[Mileage]]*H3)","v":0}]
[null,null,null,null,null,{"$f":"(IF(Mileage[[#This Row],[Expense Label]]=\"Official Business\",\"Mileage - Official Business\",IF(Mileage[[#This Row],[Expense Label]]=\"Training/Conference\",\"Mileage - Private Vehicle\",IF(ISBLANK(E230),\" \",))))","v":" "},null,null,null,null,null,null,{"$f":"SUM(Mileage[[#This Row],[Mileage]]*H3)","v":0}]
[null,null,null,null,null,{"$f":"(IF(Mileage[[#This Row],[Expense Label]]=\"Official Business\",\"Mileage - Official Business\",IF(Mileage[[#This Row],[Expense Label]]=\"Training/Conference\",\"Mileage - Private Vehicle\",IF(ISBLANK(E231),\" \",))))","v":" "},null,null,null,null,null,null,{"$f":"SUM(Mileage[[#This Row],[Mileage]]*H3)","v":0}]
[null,null,null,null,null,{"$f":"(IF(Mileage[[#This Row],[Expense Label]]=\"Official Business\",\"Mileage - Official Business\",IF(Mileage[[#This Row],[Expense Label]]=\"Training/Conference\",\"Mileage - Private Vehicle\",IF(ISBLANK(E232),\" \",))))","v":" "},null,null,null,null,null,null,{"$f":"SUM(Mileage[[#This Row],[Mileage]]*H3)","v":0}]
[null,null,null,null,null,{"$f":"(IF(Mileage[[#This Row],[Expense Label]]=\"Official Business\",\"Mileage - Official Business\",IF(Mileage[[#This Row],[Expense Label]]=\"Training/Conference\",\"Mileage - Private Vehicle\",IF(ISBLANK(E233),\" \",))))","v":" "},null,null,null,null,null,null,{"$f":"SUM(Mileage[[#This Row],[Mileage]]*H3)","v":0}]
[null,null,null,null,null,{"$f":"(IF(Mileage[[#This Row],[Expense Label]]=\"Official Business\",\"Mileage - Official Business\",IF(Mileage[[#This Row],[Expense Label]]=\"Training/Conference\",\"Mileage - Private Vehicle\",IF(ISBLANK(E234),\" \",))))","v":" "},null,null,null,null,null,null,{"$f":"SUM(Mileage[[#This Row],[Mileage]]*H3)","v":0}]
[null,null,null,null,null,{"$f":"(IF(Mileage[[#This Row],[Expense Label]]=\"Official Business\",\"Mileage - Official Business\",IF(Mileage[[#This Row],[Expense Label]]=\"Training/Conference\",\"Mileage - Private Vehicle\",IF(ISBLANK(E235),\" \",))))","v":" "},null,null,null,null,null,null,{"$f":"SUM(Mileage[[#This Row],[Mileage]]*H3)","v":0}]
[null,null,null,null,null,{"$f":"(IF(Mileage[[#This Row],[Expense Label]]=\"Official Business\",\"Mileage - Official Business\",IF(Mileage[[#This Row],[Expense Label]]=\"Training/Conference\",\"Mileage - Private Vehicle\",IF(ISBLANK(E236),\" \",))))","v":" "},null,null,null,null,null,null,{"$f":"SUM(Mileage[[#This Row],[Mileage]]*H3)","v":0}]
[null,null,null,null,null,{"$f":"(IF(Mileage[[#This Row],[Expense Label]]=\"Official Business\",\"Mileage - Official Business\",IF(Mileage[[#This Row],[Expense Label]]=\"Training/Conference\",\"Mileage - Private Vehicle\",IF(ISBLANK(E237),\" \",))))","v":" "},null,null,null,null,null,null,{"$f":"SUM(Mileage[[#This Row],[Mileage]]*H3)","v":0}]
[null,null,null,null,null,{"$f":"(IF(Mileage[[#This Row],[Expense Label]]=\"Official Business\",\"Mileage - Official Business\",IF(Mileage[[#This Row],[Expense Label]]=\"Training/Conference\",\"Mileage - Private Vehicle\",IF(ISBLANK(E238),\" \",))))","v":" "},null,null,null,null,null,null,{"$f":"SUM(Mileage[[#This Row],[Mileage]]*H3)","v":0}]
[null,null,null,null,null,{"$f":"(IF(Mileage[[#This Row],[Expense Label]]=\"Official Business\",\"Mileage - Official Business\",IF(Mileage[[#This Row],[Expense Label]]=\"Training/Conference\",\"Mileage - Private Vehicle\",IF(ISBLANK(E239),\" \",))))","v":" "},null,null,null,null,null,null,{"$f":"SUM(Mileage[[#This Row],[Mileage]]*H3)","v":0}]
[null,null,null,null,null,{"$f":"(IF(Mileage[[#This Row],[Expense Label]]=\"Official Business\",\"Mileage - Official Business\",IF(Mileage[[#This Row],[Expense Label]]=\"Training/Conference\",\"Mileage - Private Vehicle\",IF(ISBLANK(E240),\" \",))))","v":" "},null,null,null,null,null,null,{"$f":"SUM(Mileage[[#This Row],[Mileage]]*H3)","v":0}]
[null,null,null,null,null,{"$f":"(IF(Mileage[[#This Row],[Expense Label]]=\"Official Business\",\"Mileage - Official Business\",IF(Mileage[[#This Row],[Expense Label]]=\"Training/Conference\",\"Mileage - Private Vehicle\",IF(ISBLANK(E241),\" \",))))","v":" "},null,null,null,null,null,null,{"$f":"SUM(Mileage[[#This Row],[Mileage]]*H3)","v":0}]
[null,null,null,null,null,{"$f":"(IF(Mileage[[#This Row],[Expense Label]]=\"Official Business\",\"Mileage - Official Business\",IF(Mileage[[#This Row],[Expense Label]]=\"Training/Conference\",\"Mileage - Private Vehicle\",IF(ISBLANK(E242),\" \",))))","v":" "},null,null,null,null,null,null,{"$f":"SUM(Mileage[[#This Row],[Mileage]]*H3)","v":0}]
[null,null,null,null,null,{"$f":"(IF(Mileage[[#This Row],[Expense Label]]=\"Official Business\",\"Mileage - Official Business\",IF(Mileage[[#This Row],[Expense Label]]=\"Training/Conference\",\"Mileage - Private Vehicle\",IF(ISBLANK(E243),\" \",))))","v":" "},null,null,null,null,null,null,{"$f":"SUM(Mileage[[#This Row],[Mileage]]*H3)","v":0}]
[null,null,null,null,null,{"$f":"(IF(Mileage[[#This Row],[Expense Label]]=\"Official Business\",\"Mileage - Official Business\",IF(Mileage[[#This Row],[Expense Label]]=\"Training/Conference\",\"Mileage - Private Vehicle\",IF(ISBLANK(E244),\" \",))))","v":" "},null,null,null,null,null,null,{"$f":"SUM(Mileage[[#This Row],[Mileage]]*H3)","v":0}]
[null,null,null,null,null,{"$f":"(IF(Mileage[[#This Row],[Expense Label]]=\"Official Business\",\"Mileage - Official Business\",IF(Mileage[[#This Row],[Expense Label]]=\"Training/Conference\",\"Mileage - Private Vehicle\",IF(ISBLANK(E245),\" \",))))","v":" "},null,null,null,null,null,null,{"$f":"SUM(Mileage[[#This Row],[Mileage]]*H3)","v":0}]
[null,null,null,null,null,{"$f":"(IF(Mileage[[#This Row],[Expense Label]]=\"Official Business\",\"Mileage - Official Business\",IF(Mileage[[#This Row],[Expense Label]]=\"Training/Conference\",\"Mileage - Private Vehicle\",IF(ISBLANK(E246),\" \",))))","v":" "},null,null,null,null,null,null,{"$f":"SUM(Mileage[[#This Row],[Mileage]]*H3)","v":0}]
[null,null,null,null,null,{"$f":"(IF(Mileage[[#This Row],[Expense Label]]=\"Official Business\",\"Mileage - Official Business\",IF(Mileage[[#This Row],[Expense Label]]=\"Training/Conference\",\"Mileage - Private Vehicle\",IF(ISBLANK(E247),\" \",))))","v":" "},null,null,null,null,null,null,{"$f":"SUM(Mileage[[#This Row],[Mileage]]*H3)","v":0}]
[null,null,null,null,null,{"$f":"(IF(Mileage[[#This Row],[Expense Label]]=\"Official Business\",\"Mileage - Official Business\",IF(Mileage[[#This Row],[Expense Label]]=\"Training/Conference\",\"Mileage - Private Vehicle\",IF(ISBLANK(E248),\" \",))))","v":" "},null,null,null,null,null,null,{"$f":"SUM(Mileage[[#This Row],[Mileage]]*H3)","v":0}]
[null,null,null,null,null,{"$f":"(IF(Mileage[[#This Row],[Expense Label]]=\"Official Business\",\"Mileage - Official Business\",IF(Mileage[[#This Row],[Expense Label]]=\"Training/Conference\",\"Mileage - Private Vehicle\",IF(ISBLANK(E249),\" \",))))","v":" "},null,null,null,null,null,null,{"$f":"SUM(Mileage[[#This Row],[Mileage]]*H3)","v":0}]
[null,null,null,null,null,{"$f":"(IF(Mileage[[#This Row],[Expense Label]]=\"Official Business\",\"Mileage - Official Business\",IF(Mileage[[#This Row],[Expense Label]]=\"Training/Conference\",\"Mileage - Private Vehicle\",IF(ISBLANK(E250),\" \",))))","v":" "},null,null,null,null,null,null,{"$f":"SUM(Mileage[[#This Row],[Mileage]]*H3)","v":0}]
[null,null,null,null,null,{"$f":"(IF(Mileage[[#This Row],[Expense Label]]=\"Official Business\",\"Mileage - Official Business\",IF(Mileage[[#This Row],[Expense Label]]=\"Training/Conference\",\"Mileage - Private Vehicle\",IF(ISBLANK(E251),\" \",))))","v":" "},null,null,null,null,null,null,{"$f":"SUM(Mileage[[#This Row],[Mileage]]*H3)","v":0}]
[null,null,null,null,null,{"$f":"(IF(Mileage[[#This Row],[Expense Label]]=\"Official Business\",\"Mileage - Official Business\",IF(Mileage[[#This Row],[Expense Label]]=\"Training/Conference\",\"Mileage - Private Vehicle\",IF(ISBLANK(E252),\" \",))))","v":" "},null,null,null,null,null,null,{"$f":"SUM(Mileage[[#This Row],[Mileage]]*H3)","v":0}]
[null,null,null,null,null,{"$f":"(IF(Mileage[[#This Row],[Expense Label]]=\"Official Business\",\"Mileage - Official Business\",IF(Mileage[[#This Row],[Expense Label]]=\"Training/Conference\",\"Mileage - Private Vehicle\",IF(ISBLANK(E253),\" \",))))","v":" "},null,null,null,null,null,null,{"$f":"SUM(Mileage[[#This Row],[Mileage]]*H3)","v":0}]
[null,null,null,null,null,{"$f":"(IF(Mileage[[#This Row],[Expense Label]]=\"Official Business\",\"Mileage - Official Business\",IF(Mileage[[#This Row],[Expense Label]]=\"Training/Conference\",\"Mileage - Private Vehicle\",IF(ISBLANK(E254),\" \",))))","v":" "},null,null,null,null,null,null,{"$f":"SUM(Mileage[[#This Row],[Mileage]]*H3)","v":0}]
[null,null,null,null,null,{"$f":"(IF(Mileage[[#This Row],[Expense Label]]=\"Official Business\",\"Mileage - Official Business\",IF(Mileage[[#This Row],[Expense Label]]=\"Training/Conference\",\"Mileage - Private Vehicle\",IF(ISBLANK(E255),\" \",))))","v":" "},null,null,null,null,null,null,{"$f":"SUM(Mileage[[#This Row],[Mileage]]*H3)","v":0}]
[null,null,null,null,null,{"$f":"(IF(Mileage[[#This Row],[Expense Label]]=\"Official Business\",\"Mileage - Official Business\",IF(Mileage[[#This Row],[Expense Label]]=\"Training/Conference\",\"Mileage - Private Vehicle\",IF(ISBLANK(E256),\" \",))))","v":" "},null,null,null,null,null,null,{"$f":"SUM(Mileage[[#This Row],[Mileage]]*H3)","v":0}]
[null,null,null,null,null,{"$f":"(IF(Mileage[[#This Row],[Expense Label]]=\"Official Business\",\"Mileage - Official Business\",IF(Mileage[[#This Row],[Expense Label]]=\"Training/Conference\",\"Mileage - Private Vehicle\",IF(ISBLANK(E257),\" \",))))","v":" "},null,null,null,null,null,null,{"$f":"SUM(Mileage[[#This Row],[Mileage]]*H3)","v":0}]
[null,null,null,null,null,{"$f":"(IF(Mileage[[#This Row],[Expense Label]]=\"Official Business\",\"Mileage - Official Business\",IF(Mileage[[#This Row],[Expense Label]]=\"Training/Conference\",\"Mileage - Private Vehicle\",IF(ISBLANK(E258),\" \",))))","v":" "},null,null,null,null,null,null,{"$f":"SUM(Mileage[[#This Row],[Mileage]]*H3)","v":0}]
[null,null,null,null,null,{"$f":"(IF(Mileage[[#This Row],[Expense Label]]=\"Official Business\",\"Mileage - Official Business\",IF(Mileage[[#This Row],[Expense Label]]=\"Training/Conference\",\"Mileage - Private Vehicle\",IF(ISBLANK(E259),\" \",))))","v":" "},null,null,null,null,null,null,{"$f":"SUM(Mileage[[#This Row],[Mileage]]*H3)","v":0}]
[null,null,null,null,null,{"$f":"(IF(Mileage[[#This Row],[Expense Label]]=\"Official Business\",\"Mileage - Official Business\",IF(Mileage[[#This Row],[Expense Label]]=\"Training/Conference\",\"Mileage - Private Vehicle\",IF(ISBLANK(E260),\" \",))))","v":" "},null,null,null,null,null,null,{"$f":"SUM(Mileage[[#This Row],[Mileage]]*H3)","v":0}]
[null,null,null,null,null,{"$f":"(IF(Mileage[[#This Row],[Expense Label]]=\"Official Business\",\"Mileage - Official Business\",IF(Mileage[[#This Row],[Expense Label]]=\"Training/Conference\",\"Mileage - Private Vehicle\",IF(ISBLANK(E261),\" \",))))","v":" "},null,null,null,null,null,null,{"$f":"SUM(Mileage[[#This Row],[Mileage]]*H3)","v":0}]
[null,null,null,null,null,{"$f":"(IF(Mileage[[#This Row],[Expense Label]]=\"Official Business\",\"Mileage - Official Business\",IF(Mileage[[#This Row],[Expense Label]]=\"Training/Conference\",\"Mileage - Private Vehicle\",IF(ISBLANK(E262),\" \",))))","v":" "},null,null,null,null,null,null,{"$f":"SUM(Mileage[[#This Row],[Mileage]]*H3)","v":0}]
[null,null,null,null,null,{"$f":"(IF(Mileage[[#This Row],[Expense Label]]=\"Official Business\",\"Mileage - Official Business\",IF(Mileage[[#This Row],[Expense Label]]=\"Training/Conference\",\"Mileage - Private Vehicle\",IF(ISBLANK(E263),\" \",))))","v":" "},null,null,null,null,null,null,{"$f":"SUM(Mileage[[#This Row],[Mileage]]*H3)","v":0}]
[null,null,null,null,null,{"$f":"(IF(Mileage[[#This Row],[Expense Label]]=\"Official Business\",\"Mileage - Official Business\",IF(Mileage[[#This Row],[Expense Label]]=\"Training/Conference\",\"Mileage - Private Vehicle\",IF(ISBLANK(E264),\" \",))))","v":" "},null,null,null,null,null,null,{"$f":"SUM(Mileage[[#This Row],[Mileage]]*H3)","v":0}]
[null,null,null,null,null,{"$f":"(IF(Mileage[[#This Row],[Expense Label]]=\"Official Business\",\"Mileage - Official Business\",IF(Mileage[[#This Row],[Expense Label]]=\"Training/Conference\",\"Mileage - Private Vehicle\",IF(ISBLANK(E265),\" \",))))","v":" "},null,null,null,null,null,null,{"$f":"SUM(Mileage[[#This Row],[Mileage]]*H3)","v":0}]
[null,null,null,null,null,{"$f":"(IF(Mileage[[#This Row],[Expense Label]]=\"Official Business\",\"Mileage - Official Business\",IF(Mileage[[#This Row],[Expense Label]]=\"Training/Conference\",\"Mileage - Private Vehicle\",IF(ISBLANK(E266),\" \",))))","v":" "},null,null,null,null,null,null,{"$f":"SUM(Mileage[[#This Row],[Mileage]]*H3)","v":0}]
[null,null,null,null,null,{"$f":"(IF(Mileage[[#This Row],[Expense Label]]=\"Official Business\",\"Mileage - Official Business\",IF(Mileage[[#This Row],[Expense Label]]=\"Training/Conference\",\"Mileage - Private Vehicle\",IF(ISBLANK(E267),\" \",))))","v":" "},null,null,null,null,null,null,{"$f":"SUM(Mileage[[#This Row],[Mileage]]*H3)","v":0}]
[null,null,null,null,null,{"$f":"(IF(Mileage[[#This Row],[Expense Label]]=\"Official Business\",\"Mileage - Official Business\",IF(Mileage[[#This Row],[Expense Label]]=\"Training/Conference\",\"Mileage - Private Vehicle\",IF(ISBLANK(E268),\" \",))))","v":" "},null,null,null,null,null,null,{"$f":"SUM(Mileage[[#This Row],[Mileage]]*H3)","v":0}]
[null,null,null,null,null,{"$f":"(IF(Mileage[[#This Row],[Expense Label]]=\"Official Business\",\"Mileage - Official Business\",IF(Mileage[[#This Row],[Expense Label]]=\"Training/Conference\",\"Mileage - Private Vehicle\",IF(ISBLANK(E269),\" \",))))","v":" "},null,null,null,null,null,null,{"$f":"SUM(Mileage[[#This Row],[Mileage]]*H3)","v":0}]
[null,null,null,null,null,{"$f":"(IF(Mileage[[#This Row],[Expense Label]]=\"Official Business\",\"Mileage - Official Business\",IF(Mileage[[#This Row],[Expense Label]]=\"Training/Conference\",\"Mileage - Private Vehicle\",IF(ISBLANK(E270),\" \",))))","v":" "},null,null,null,null,null,null,{"$f":"SUM(Mileage[[#This Row],[Mileage]]*H3)","v":0}]
[null,null,null,null,null,{"$f":"(IF(Mileage[[#This Row],[Expense Label]]=\"Official Business\",\"Mileage - Official Business\",IF(Mileage[[#This Row],[Expense Label]]=\"Training/Conference\",\"Mileage - Private Vehicle\",IF(ISBLANK(E271),\" \",))))","v":" "},null,null,null,null,null,null,{"$f":"SUM(Mileage[[#This Row],[Mileage]]*H3)","v":0}]
[null,null,null,null,null,{"$f":"(IF(Mileage[[#This Row],[Expense Label]]=\"Official Business\",\"Mileage - Official Business\",IF(Mileage[[#This Row],[Expense Label]]=\"Training/Conference\",\"Mileage - Private Vehicle\",IF(ISBLANK(E272),\" \",))))","v":" "},null,null,null,null,null,null,{"$f":"SUM(Mileage[[#This Row],[Mileage]]*H3)","v":0}]
[null,null,null,null,null,{"$f":"(IF(Mileage[[#This Row],[Expense Label]]=\"Official Business\",\"Mileage - Official Business\",IF(Mileage[[#This Row],[Expense Label]]=\"Training/Conference\",\"Mileage - Private Vehicle\",IF(ISBLANK(E273),\" \",))))","v":" "},null,null,null,null,null,null,{"$f":"SUM(Mileage[[#This Row],[Mileage]]*H3)","v":0}]
[null,null,null,null,null,{"$f":"(IF(Mileage[[#This Row],[Expense Label]]=\"Official Business\",\"Mileage - Official Business\",IF(Mileage[[#This Row],[Expense Label]]=\"Training/Conference\",\"Mileage - Private Vehicle\",IF(ISBLANK(E274),\" \",))))","v":" "},null,null,null,null,null,null,{"$f":"SUM(Mileage[[#This Row],[Mileage]]*H3)","v":0}]
[null,null,null,null,null,{"$f":"(IF(Mileage[[#This Row],[Expense Label]]=\"Official Business\",\"Mileage - Official Business\",IF(Mileage[[#This Row],[Expense Label]]=\"Training/Conference\",\"Mileage - Private Vehicle\",IF(ISBLANK(E275),\" \",))))","v":" "},null,null,null,null,null,null,{"$f":"SUM(Mileage[[#This Row],[Mileage]]*H3)","v":0}]
[null,null,null,null,null,{"$f":"(IF(Mileage[[#This Row],[Expense Label]]=\"Official Business\",\"Mileage - Official Business\",IF(Mileage[[#This Row],[Expense Label]]=\"Training/Conference\",\"Mileage - Private Vehicle\",IF(ISBLANK(E276),\" \",))))","v":" "},null,null,null,null,null,null,{"$f":"SUM(Mileage[[#This Row],[Mileage]]*H3)","v":0}]
[null,null,null,null,null,{"$f":"(IF(Mileage[[#This Row],[Expense Label]]=\"Official Business\",\"Mileage - Official Business\",IF(Mileage[[#This Row],[Expense Label]]=\"Training/Conference\",\"Mileage - Private Vehicle\",IF(ISBLANK(E277),\" \",))))","v":" "},null,null,null,null,null,null,{"$f":"SUM(Mileage[[#This Row],[Mileage]]*H3)","v":0}]
[null,null,null,null,null,{"$f":"(IF(Mileage[[#This Row],[Expense Label]]=\"Official Business\",\"Mileage - Official Business\",IF(Mileage[[#This Row],[Expense Label]]=\"Training/Conference\",\"Mileage - Private Vehicle\",IF(ISBLANK(E278),\" \",))))","v":" "},null,null,null,null,null,null,{"$f":"SUM(Mileage[[#This Row],[Mileage]]*H3)","v":0}]
[null,null,null,null,null,{"$f":"(IF(Mileage[[#This Row],[Expense Label]]=\"Official Business\",\"Mileage - Official Business\",IF(Mileage[[#This Row],[Expense Label]]=\"Training/Conference\",\"Mileage - Private Vehicle\",IF(ISBLANK(E279),\" \",))))","v":" "},null,null,null,null,null,null,{"$f":"SUM(Mileage[[#This Row],[Mileage]]*H3)","v":0}]
[null,null,null,null,null,{"$f":"(IF(Mileage[[#This Row],[Expense Label]]=\"Official Business\",\"Mileage - Official Business\",IF(Mileage[[#This Row],[Expense Label]]=\"Training/Conference\",\"Mileage - Private Vehicle\",IF(ISBLANK(E280),\" \",))))","v":" "},null,null,null,null,null,null,{"$f":"SUM(Mileage[[#This Row],[Mileage]]*H3)","v":0}]
[null,null,null,null,null,{"$f":"(IF(Mileage[[#This Row],[Expense Label]]=\"Official Business\",\"Mileage - Official Business\",IF(Mileage[[#This Row],[Expense Label]]=\"Training/Conference\",\"Mileage - Private Vehicle\",IF(ISBLANK(E281),\" \",))))","v":" "},null,null,null,null,null,null,{"$f":"SUM(Mileage[[#This Row],[Mileage]]*H3)","v":0}]
[null,null,null,null,null,{"$f":"(IF(Mileage[[#This Row],[Expense Label]]=\"Official Business\",\"Mileage - Official Business\",IF(Mileage[[#This Row],[Expense Label]]=\"Training/Conference\",\"Mileage - Private Vehicle\",IF(ISBLANK(E282),\" \",))))","v":" "},null,null,null,null,null,null,{"$f":"SUM(Mileage[[#This Row],[Mileage]]*H3)","v":0}]
[null,null,null,null,null,{"$f":"(IF(Mileage[[#This Row],[Expense Label]]=\"Official Business\",\"Mileage - Official Business\",IF(Mileage[[#This Row],[Expense Label]]=\"Training/Conference\",\"Mileage - Private Vehicle\",IF(ISBLANK(E283),\" \",))))","v":" "},null,null,null,null,null,null,{"$f":"SUM(Mileage[[#This Row],[Mileage]]*H3)","v":0}]
[null,null,null,null,null,{"$f":"(IF(Mileage[[#This Row],[Expense Label]]=\"Official Business\",\"Mileage - Official Business\",IF(Mileage[[#This Row],[Expense Label]]=\"Training/Conference\",\"Mileage - Private Vehicle\",IF(ISBLANK(E284),\" \",))))","v":" "},null,null,null,null,null,null,{"$f":"SUM(Mileage[[#This Row],[Mileage]]*H3)","v":0}]
[null,null,null,null,null,{"$f":"(IF(Mileage[[#This Row],[Expense Label]]=\"Official Business\",\"Mileage - Official Business\",IF(Mileage[[#This Row],[Expense Label]]=\"Training/Conference\",\"Mileage - Private Vehicle\",IF(ISBLANK(E285),\" \",))))","v":" "},null,null,null,null,null,null,{"$f":"SUM(Mileage[[#This Row],[Mileage]]*H3)","v":0}]
[null,null,null,null,null,{"$f":"(IF(Mileage[[#This Row],[Expense Label]]=\"Official Business\",\"Mileage - Official Business\",IF(Mileage[[#This Row],[Expense Label]]=\"Training/Conference\",\"Mileage - Private Vehicle\",IF(ISBLANK(E286),\" \",))))","v":" "},null,null,null,null,null,null,{"$f":"SUM(Mileage[[#This Row],[Mileage]]*H3)","v":0}]
[null,null,null,null,null,{"$f":"(IF(Mileage[[#This Row],[Expense Label]]=\"Official Business\",\"Mileage - Official Business\",IF(Mileage[[#This Row],[Expense Label]]=\"Training/Conference\",\"Mileage - Private Vehicle\",IF(ISBLANK(E287),\" \",))))","v":" "},null,null,null,null,null,null,{"$f":"SUM(Mileage[[#This Row],[Mileage]]*H3)","v":0}]
[null,null,null,null,null,{"$f":"(IF(Mileage[[#This Row],[Expense Label]]=\"Official Business\",\"Mileage - Official Business\",IF(Mileage[[#This Row],[Expense Label]]=\"Training/Conference\",\"Mileage - Private Vehicle\",IF(ISBLANK(E288),\" \",))))","v":" "},null,null,null,null,null,null,{"$f":"SUM(Mileage[[#This Row],[Mileage]]*H3)","v":0}]
[null,null,null,null,null,{"$f":"(IF(Mileage[[#This Row],[Expense Label]]=\"Official Business\",\"Mileage - Official Business\",IF(Mileage[[#This Row],[Expense Label]]=\"Training/Conference\",\"Mileage - Private Vehicle\",IF(ISBLANK(E289),\" \",))))","v":" "},null,null,null,null,null,null,{"$f":"SUM(Mileage[[#This Row],[Mileage]]*H3)","v":0}]
[null,null,null,null,null,{"$f":"(IF(Mileage[[#This Row],[Expense Label]]=\"Official Business\",\"Mileage - Official Business\",IF(Mileage[[#This Row],[Expense Label]]=\"Training/Conference\",\"Mileage - Private Vehicle\",IF(ISBLANK(E290),\" \",))))","v":" "},null,null,null,null,null,null,{"$f":"SUM(Mileage[[#This Row],[Mileage]]*H3)","v":0}]
[null,null,null,null,null,{"$f":"(IF(Mileage[[#This Row],[Expense Label]]=\"Official Business\",\"Mileage - Official Business\",IF(Mileage[[#This Row],[Expense Label]]=\"Training/Conference\",\"Mileage - Private Vehicle\",IF(ISBLANK(E291),\" \",))))","v":" "},null,null,null,null,null,null,{"$f":"SUM(Mileage[[#This Row],[Mileage]]*H3)","v":0}]
[null,null,null,null,null,{"$f":"(IF(Mileage[[#This Row],[Expense Label]]=\"Official Business\",\"Mileage - Official Business\",IF(Mileage[[#This Row],[Expense Label]]=\"Training/Conference\",\"Mileage - Private Vehicle\",IF(ISBLANK(E292),\" \",))))","v":" "},null,null,null,null,null,null,{"$f":"SUM(Mileage[[#This Row],[Mileage]]*H3)","v":0}]
[null,null,null,null,null,{"$f":"(IF(Mileage[[#This Row],[Expense Label]]=\"Official Business\",\"Mileage - Official Business\",IF(Mileage[[#This Row],[Expense Label]]=\"Training/Conference\",\"Mileage - Private Vehicle\",IF(ISBLANK(E293),\" \",))))","v":" "},null,null,null,null,null,null,{"$f":"SUM(Mileage[[#This Row],[Mileage]]*H3)","v":0}]
[null,null,null,null,null,{"$f":"(IF(Mileage[[#This Row],[Expense Label]]=\"Official Business\",\"Mileage - Official Business\",IF(Mileage[[#This Row],[Expense Label]]=\"Training/Conference\",\"Mileage - Private Vehicle\",IF(ISBLANK(E294),\" \",))))","v":" "},null,null,null,null,null,null,{"$f":"SUM(Mileage[[#This Row],[Mileage]]*H3)","v":0}]
[null,null,null,null,null,{"$f":"(IF(Mileage[[#This Row],[Expense Label]]=\"Official Business\",\"Mileage - Official Business\",IF(Mileage[[#This Row],[Expense Label]]=\"Training/Conference\",\"Mileage - Private Vehicle\",IF(ISBLANK(E295),\" \",))))","v":" "},null,null,null,null,null,null,{"$f":"SUM(Mileage[[#This Row],[Mileage]]*H3)","v":0}]
[null,null,null,null,null,{"$f":"(IF(Mileage[[#This Row],[Expense Label]]=\"Official Business\",\"Mileage - Official Business\",IF(Mileage[[#This Row],[Expense Label]]=\"Training/Conference\",\"Mileage - Private Vehicle\",IF(ISBLANK(E296),\" \",))))","v":" "},null,null,null,null,null,null,{"$f":"SUM(Mileage[[#This Row],[Mileage]]*H3)","v":0}]
[null,null,null,null,null,{"$f":"(IF(Mileage[[#This Row],[Expense Label]]=\"Official Business\",\"Mileage - Official Business\",IF(Mileage[[#This Row],[Expense Label]]=\"Training/Conference\",\"Mileage - Private Vehicle\",IF(ISBLANK(E297),\" \",))))","v":" "},null,null,null,null,null,null,{"$f":"SUM(Mileage[[#This Row],[Mileage]]*H3)","v":0}]
[null,null,null,null,null,{"$f":"(IF(Mileage[[#This Row],[Expense Label]]=\"Official Business\",\"Mileage - Official Business\",IF(Mileage[[#This Row],[Expense Label]]=\"Training/Conference\",\"Mileage - Private Vehicle\",IF(ISBLANK(E298),\" \",))))","v":" "},null,null,null,null,null,null,{"$f":"SUM(Mileage[[#This Row],[Mileage]]*H3)","v":0}]
[null,null,null,null,null,{"$f":"(IF(Mileage[[#This Row],[Expense Label]]=\"Official Business\",\"Mileage - Official Business\",IF(Mileage[[#This Row],[Expense Label]]=\"Training/Conference\",\"Mileage - Private Vehicle\",IF(ISBLANK(E299),\" \",))))","v":" "},null,null,null,null,null,null,{"$f":"SUM(Mileage[[#This Row],[Mileage]]*H3)","v":0}]
[null,null,null,null,null,{"$f":"(IF(Mileage[[#This Row],[Expense Label]]=\"Official Business\",\"Mileage - Official Business\",IF(Mileage[[#This Row],[Expense Label]]=\"Training/Conference\",\"Mileage - Private Vehicle\",IF(ISBLANK(E300),\" \",))))","v":" "},null,null,null,null,null,null,{"$f":"SUM(Mileage[[#This Row],[Mileage]]*H3)","v":0}]
[null,null,null,null,null,{"$f":"(IF(Mileage[[#This Row],[Expense Label]]=\"Official Business\",\"Mileage - Official Business\",IF(Mileage[[#This Row],[Expense Label]]=\"Training/Conference\",\"Mileage - Private Vehicle\",IF(ISBLANK(E301),\" \",))))","v":" "},null,null,null,null,null,null,{"$f":"SUM(Mileage[[#This Row],[Mileage]]*H3)","v":0}]
[null,null,null,null,null,{"$f":"(IF(Mileage[[#This Row],[Expense Label]]=\"Official Business\",\"Mileage - Official Business\",IF(Mileage[[#This Row],[Expense Label]]=\"Training/Conference\",\"Mileage - Private Vehicle\",IF(ISBLANK(E302),\" \",))))","v":" "},null,null,null,null,null,null,{"$f":"SUM(Mileage[[#This Row],[Mileage]]*H3)","v":0}]

{"sheet":"Dropdown","index":2,"n_rows":3,"n_cols":1,"rows_kept":3,"cut":false,"hidden":true,"merged":[]}
["Expense Item Classification"]
["Official Business"]
["Training/Conference"]